Workbook

Sheet Data summary
A1: RUN # 2 | B1: Rate classes | C1: Weather station used for normalization | H1: Test Year
A2: 1 | B2: Residential | C2: North Bay | H2: 2004
A3: 2 | B3: GS>50kW
A4: 3 | B4: Street Lighting
A5: 4 | B5: Sentinel Lighting
A6: 5 | B6: USL
A7: 6 | B7: GS<50 kW
A8: 7 | B8: Standby Power
A11: Monthly kWh by class (with actual weather) | C11: Jan | D11: Feb | E11: Mar | F11: Apr | G11: May | H11: Jun | I11: Jul | J11: Aug | K11: Sep | L11: Oct | M11: Nov | N11: Dec | O11: TOTAL
A12: 1 | B12: Residential class | C12: 55166997.46 | D12: 43704867.24 | E12: 38633239.12 | F12: 29643521.28 | G12: 28607899.73 | H12: 21807418.9 | I12: 25259788.37 | J12: 23106648.77 | K12: 22897737.69 | L12: 28250430.72 | M12: 35229662.31 | N12: 44488760.99 | O12: =SUM(C12:N12) -> 396796972.6
A13: 2 | B13: Street lighting | C13: 37345926.14 | D13: 31114442.91 | E13: 32200595.71 | F13: 29642078.17 | G13: 24356732.65 | H13: 25965311.31 | I13: 26453369.39 | J13: 26818707.52 | K13: 26884498.85 | L13: 27251062.34 | M13: 29609587.9 | N13: 38631850.42 | O13: =SUM(C13:N13) -> 356274163.3
A14: 3 | B14: Sentinel lighting | C14: 872988.2806 | D14: 745524.4951 | E14: 705351.8035 | F14: 588425.8292 | G14: 524709.4993 | H14: 465999.3343 | I14: 503122.3981 | J14: 576435.5959 | K14: 647803.7766 | L14: 766978.0458 | M14: 825115.7048 | N14: 900966.9001 | O14: 8123421.663
A15: 4 | B15: General service <50kW | C15: 60201.96858 | D15: 51411.9642 | E15: 48641.62332 | F15: 40578.31481 | G15: 36184.38585 | H15: 32135.68601 | I15: 34695.72212 | J15: 39751.45876 | K15: 44673.06546 | L15: 52891.41818 | M15: 56900.63754 | N15: 62131.3965 | O15: 560197.6413
A16: 5 | B16: General service 50 to 1000kW | C16: 181123.65 | D16: 181123.65 | E16: 181123.65 | F16: 181123.65 | G16: 181123.65 | H16: 181123.65 | I16: 181123.65 | J16: 181123.65 | K16: 181123.65 | L16: 181123.65 | M16: 181123.65 | N16: 181123.65 | O16: 2173483.8
A17: 6 | B17: General service 1000 to 5000kW | C17: 15576995.23 | D17: 13048084.57 | E17: 12504229.15 | F17: 11178176.98 | G17: 11082015.45 | H17: 11205979.61 | I17: 11540676.45 | J17: 10430199.56 | K17: 10461467.39 | L17: 10316701.53 | M17: 10784934.55 | N17: 14464574.4 | O17: 142594034.9
A18: 7 | B18: USL | C18: 1006483.538 | D18: 1107610.749 | E18: 1293516.989 | F18: 1319050.998 | G18: 1353042.993 | H18: 1349607.877 | I18: 1694549.376 | J18: 1576942.979 | K18: 1544000.047 | L18: 1413671.011 | M18: 1427079.8 | N18: 1512577.736 | O18: 16598134.09
A21: Monthly kWh by class (with normalized weather) | C21: Jan | D21: Feb | E21: Mar | F21: Apr | G21: May | H21: Jun | I21: Jul | J21: Aug | K21: Sep | L21: Oct | M21: Nov | N21: Dec | O21: TOTAL
A22: 1 | B22: Residential class | C22: 50509772.72 | D22: 44860451.33 | E22: 40295494.7 | F22: 29043170.24 | G22: 27853247.47 | H22: 22503386.56 | I22: 25425910.16 | J22: 23722340 | K22: 23683270.17 | L22: 29629551.4 | M22: 36512321.03 | N22: 42462994.7 | O22: =SUM(C22:N22) -> 396501910.5
A23: 2 | B23: Street lighting | C23: 35474458.75 | D23: 31578804.86 | E23: 32868559.42 | F23: 29400832.05 | G23: 23953768.41 | H23: 26655833.33 | I23: 26618191.36 | J23: 27429581.24 | K23: 27482085.94 | L23: 27805250.62 | M23: 30125013.74 | N23: 37817812.92 | O23: =SUM(C23:N23) -> 357210192.7
A24: 3 | B24: Sentinel lighting | C24: 872988.2806 | D24: 745524.4951 | E24: 705351.8035 | F24: 588425.8292 | G24: 524709.4993 | H24: 465999.3343 | I24: 503122.3981 | J24: 576435.5959 | K24: 647803.7766 | L24: 766978.0458 | M24: 825115.7048 | N24: 900966.9001 | O24: 8123421.663
A25: 4 | B25: General service <50kW | C25: 60201.96858 | D25: 51411.9642 | E25: 48641.62332 | F25: 40578.31481 | G25: 36184.38585 | H25: 32135.68601 | I25: 34695.72212 | J25: 39751.45876 | K25: 44673.06546 | L25: 52891.41818 | M25: 56900.63754 | N25: 62131.3965 | O25: 560197.6413
A26: 5 | B26: General service 50 to 1000kW | C26: 181123.65 | D26: 181123.65 | E26: 181123.65 | F26: 181123.65 | G26: 181123.65 | H26: 181123.65 | I26: 181123.65 | J26: 181123.65 | K26: 181123.65 | L26: 181123.65 | M26: 181123.65 | N26: 181123.65 | O26: 2173483.8
A27: 6 | B27: General service 1000 to 5000kW | C27: 14984178.85 | D27: 13195176.11 | E27: 12715814.29 | F27: 11101759.93 | G27: 10952557.28 | H27: 11441594.16 | I27: 11596915.64 | J27: 10638637.29 | K27: 10659474.9 | L27: 10492246.27 | M27: 10948201.69 | N27: 14206719.47 | O27: 142933275.9
A28: 7 | B28: USL | C28: 951730.7083 | D28: 1121196.415 | E28: 1313059.357 | F28: 1311992.949 | G28: 1326957.922 | H28: 1461640.482 | I28: 1721290.643 | J28: 1676053.177 | K28: 1614446.514 | L28: 1429884.693 | M28: 1442159.424 | N28: 1488761.741 | O28: 16859174.02
A31: Residential class information | C31: Equipment saturation
B32: Electric space heating | C32: 0.2646175727
B33: Electric water heating | C33: 0.2967171717
B34: Air conditioning | C34: 0.2634063678
B35: Baseload | C35: 1
A38: GS > 50 kW | C38: 2004 kWh (Actual) | D38: 2004 kWh (Weather Corrected)
B39: Weather sensitive load | C39: 313774767.5 | D39: 314710796.9
B40: Non-weather sensitive load | C40: 42499395.79 | D40: 42499395.79
B41: TOTAL | C41: =SUM(C39:C40) -> 356274163.3 | D41: =SUM(D39:D40) -> 357210192.7
A44: Standby Power | C44: 2004 kWh (Actual) | D44: 2004 kWh (Weather Corrected)
B45: Weather sensitive load | C45: 16598134.09 | D45: 16859174.02
B46: Non-weather sensitive load | C46: 0 | D46: 0
B47: TOTAL | C47: =SUM(C45:C46) -> 16598134.09 | D47: =SUM(D45:D46) -> 16859174.02

Sheet Hourly load shapes by class
A1: ALL UNITS IN GWh | M1: 2015 Load Shape
A2: Year | B2: Month | C2: Day | D2: Hour (EST) | E2: Residential | F2: GS 50 to 5000kW | G2: Street Lighting | H2: GS<50kW | I2: USL | J2: Sentinel Lighting | K2: TOTAL LDC sales | M2: =E2 -> Residential | N2: =F2 -> GS 50 to 5000kW | O2: Street Lighting | P2: GS<50kW | Q2: USL | R2: Sentinel Lighting | S2: =K2 -> TOTAL LDC sales | V2: =E2 -> Residential | W2: =F2 -> GS 50 to 5000kW | X2: Street Lighting | Y2: GS<50kW | Z2: USL | AA2: Sentinel Lighting | AB2: =K2 -> TOTAL LDC sales
A3: 2004 | B3: 1 | C3: 1 | D3: 1 | E3: 0.04998275074 | F3: 0.04685946677 | G3: 0.001886396115 | H3: 0.01036803462 | I3: 0.0002434457661 | J3: 0.0001300873817 | K3: =SUM(E3:J3) -> 0.1094701814 | M3: =E3*V$5 -> 0.04551854668 | N3: =F3*W$5 -> 0.04502588093 | O3: =G3*X$5 -> 0.00170507248 | P3: =H3*Y$5 -> 0.009744059833 | Q3: =I3*Z$5 -> 0.0001211298163 | R3: 9.037089569e-05 | S3: =SUM(M3:R3) -> 0.1022050606 | U3: 2004 | V3: =SUM(E3:E8786)*1000000 -> 396501910.5 | W3: =SUM(F3:F8786)*1000000 -> 357210192.7 | X3: =SUM(G3:G8786)*1000000 -> 8123421.663 | Y3: 142933275.9 | Z3: =SUM(I3:I8786)*1000000 -> 2173483.8 | AA3: 560197.6413 | AB3: =SUM(V3:AA3) -> 907502482.1
A4: 2004 | B4: 1 | C4: 1 | D4: 2 | E4: 0.04737936208 | F4: 0.04646901716 | G4: 0.001886396115 | H4: 0.01025360621 | I4: 0.0002434457661 | J4: 0.0001300873817 | K4: =SUM(E4:J4) -> 0.1063619147 | M4: =E4*V$5 -> 0.0431476794 | N4: =F4*W$5 -> 0.0446507094 | O4: =G4*X$5 -> 0.00170507248 | P4: =H4*AB$5 -> 0.009575266038 | Q4: =I4*Z$5 -> 0.0001211298163 | R4: =J4*AA$5 -> 9.037089569e-05 | S4: =SUM(M4:R4) -> 0.09929022803 | U4: 2018 Forecast | V4: 361088384.5 | W4: 343232749.1 | X4: 7342584.419 | Y4: 134331186.6 | Z4: 1081447 | AA4: 389165.8204 | AB4: =SUM(V4:AA4) -> 847465517.5
A5: 2004 | B5: 1 | C5: 1 | D5: 3 | E5: 0.04140054516 | F5: 0.04931502643 | G5: 0.001886396115 | H5: 0.01039576891 | I5: 0.0002434457661 | J5: 0.0001300873817 | K5: 0.1033712698 | M5: 0.03770285987 | N5: 0.04738535585 | O5: 0.00170507248 | P5: 0.009708023785 | Q5: 0.0001211298163 | R5: 9.037089569e-05 | S5: 0.0967128127 | U5: Scaling Factor | V5: =V4/V3 -> 0.9106851064 | W5: =W4/W3 -> 0.9608705356 | X5: 0.9038782822 | Y5: 0.9398174478 | Z5: 0.497563865 | AA5: 0.694693786 | AB5: =AB4/AB3 -> 0.9338437461
A6: 2004 | B6: 1 | C6: 1 | D6: 4 | E6: 0.04171107541 | F6: 0.0485135488 | G6: 0.001886396115 | H6: 0.009856282499 | I6: 0.0002434457661 | J6: 0.0001300873817 | K6: 0.102340836 | M6: 0.03798565515 | N6: 0.04661523962 | O6: 0.00170507248 | P6: 0.009204227772 | Q6: 0.0001211298163 | R6: 9.037089569e-05 | S6: 0.09572169573
A7: 2004 | B7: 1 | C7: 1 | D7: 5 | E7: 0.04264542569 | F7: 0.04710852985 | G7: 0.001886396115 | H7: 0.01067373864 | I7: 0.0002434457661 | J7: 0.0001300873817 | K7: 0.1026876234 | M7: 0.03883655403 | N7: 0.04526519831 | O7: 0.00170507248 | P7: 0.009967604072 | Q7: 0.0001211298163 | R7: 9.037089569e-05 | S7: 0.0959859296
A8: 2004 | B8: 1 | C8: 1 | D8: 6 | E8: 0.04518971953 | F8: 0.04761941995 | G8: 0.001886396115 | H8: 0.009680863823 | I8: 0.0002434457661 | J8: 0.0001300873817 | K8: 0.1047499326 | M8: 0.04115360454 | N8: 0.04575609755 | O8: 0.00170507248 | P8: 0.009040414138 | Q8: 0.0001211298163 | R8: 9.037089569e-05 | S8: 0.09786668942
A9: 2004 | B9: 1 | C9: 1 | D9: 7 | E9: 0.04846447127 | F9: 0.04846897635 | G9: 0.001886396115 | H9: 0.01313262849 | I9: 0.0002434457661 | J9: 0.0001300873817 | K9: 0.1123260054 | M9: 0.04413587218 | N9: 0.04657241126 | O9: 0.00170507248 | P9: 0.01226382298 | Q9: 0.0001211298163 | R9: 9.037089569e-05 | S9: 0.1048886796
A10: 2004 | B10: 1 | C10: 1 | D10: 8 | E10: 0.05310104972 | F10: 0.05092440815 | G10: 0.001886396115 | H10: 0.01523978396 | I10: 0.0002434457661 | J10: 0.0001300873817 | K10: 0.1215251711 | M10: 0.04835833511 | N10: 0.04893176334 | O10: 0.00170507248 | P10: 0.01423157694 | Q10: 0.0001211298163 | R10: 9.037089569e-05 | S10: 0.1134382486
A11: 2004 | B11: 1 | C11: 1 | D11: 9 | E11: 0.06307214527 | F11: 0.04593560009 | G11: 0.0002508906833 | H11: 0.01598735986 | I11: 0.0002434457661 | J11: 1.730162176e-05 | K11: 0.1255067433 | M11: 0.05743886332 | N11: 0.04413816466 | O11: 0.0002267746399 | P11: 0.01492969602 | Q11: 0.0001211298163 | R11: 1.201932913e-05 | S11: 0.1168666478
A12: 2004 | B12: 1 | C12: 1 | D12: 10 | E12: 0.07597124669 | F12: 0.03800243494 | G12: 0 | H12: 0.01736755115 | I12: 0.0002434457661 | J12: 0 | K12: 0.1315846785 | M12: 0.06918588287 | N12: 0.03651542001 | O12: 0 | P12: 0.01621857902 | Q12: 0.0001211298163 | R12: 0 | S12: 0.1220410117
A13: 2004 | B13: 1 | C13: 1 | D13: 11 | E13: 0.07431929938 | F13: 0.0401020603 | G13: 0 | H13: 0.02066136722 | I13: 0.0002434457661 | J13: 0 | K13: 0.1353261727 | M13: 0.06768147906 | N13: 0.03853288816 | O13: 0 | P13: 0.01929448857 | Q13: 0.0001211298163 | R13: 0 | S13: 0.1256299856
A14: 2004 | B14: 1 | C14: 1 | D14: 12 | E14: 0.07563643856 | F14: 0.04071214985 | G14: 0 | H14: 0.0206797486 | I14: 0.0002434457661 | J14: 0 | K14: 0.1372717828 | M14: 0.0688809781 | N14: 0.03911910523 | O14: 0 | P14: 0.0193116539 | Q14: 0.0001211298163 | R14: 0 | S14: 0.127432867
A15: 2004 | B15: 1 | C15: 1 | D15: 13 | E15: 0.06987098229 | F15: 0.04228911422 | G15: 0 | H15: 0.02360433451 | I15: 0.0002434457661 | J15: 0 | K15: 0.1360078768 | M15: 0.06363046294 | N15: 0.04063436383 | O15: 0 | P15: 0.02204276016 | Q15: 0.0001211298163 | R15: 0 | S15: 0.1264287168
A16: 2004 | B16: 1 | C16: 1 | D16: 14 | E16: 0.06885216974 | F16: 0.04353485581 | G16: 0 | H16: 0.02195493499 | I16: 0.0002434457661 | J16: 0 | K16: 0.1345854063 | M16: 0.06270264552 | N16: 0.04183136022 | O16: 0 | P16: 0.02050247874 | Q16: 0.0001211298163 | R16: 0 | S16: 0.1251576143
A17: 2004 | B17: 1 | C17: 1 | D17: 15 | E17: 0.0709998831 | F17: 0.04154350124 | G17: 0 | H17: 0.01999669155 | I17: 0.0002434457661 | J17: 0 | K17: 0.1327835217 | M17: 0.0646585361 | N17: 0.03991792629 | O17: 0 | P17: 0.01867378535 | Q17: 0.0001211298163 | R17: 0 | S17: 0.1233713776
A18: 2004 | B18: 1 | C18: 1 | D18: 16 | E18: 0.0724861671 | F18: 0.04076034537 | G18: 0 | H18: 0.02006987524 | I18: 0.0002434457661 | J18: 0 | K18: 0.1335598335 | M18: 0.0660120728 | N18: 0.03916541489 | O18: 0 | P18: 0.01874212748 | Q18: 0.0001211298163 | R18: 0 | S18: 0.124040745
A19: 2004 | B19: 1 | C19: 1 | D19: 17 | E19: 0.07647800017 | F19: 0.04097388106 | G19: 0.000409347957 | H19: 0.02402042812 | I19: 0.0002434457661 | J19: 2.822896182e-05 | K19: 0.142153332 | M19: 0.06964737572 | N19: 0.03937059504 | O19: 0.0003700007282 | P19: 0.02243132658 | Q19: 0.0001211298163 | R19: 1.961048436e-05 | S19: 0.1319600384
A20: 2004 | B20: 1 | C20: 1 | D20: 18 | E20: 0.08148791159 | F20: 0.04590049644 | G20: 0.001886396115 | H20: 0.02253093028 | I20: 0.0002434457661 | J20: 0.0001300873817 | K20: 0.1521792676 | M20: 0.07420982744 | N20: 0.0441044346 | O20: 0.00170507248 | P20: 0.02104036833 | Q20: 0.0001211298163 | R20: 9.037089569e-05 | S20: 0.1412712036
A21: 2004 | B21: 1 | C21: 1 | D21: 19 | E21: 0.08275556762 | F21: 0.04942501709 | G21: 0.001886396115 | H21: 0.01488312687 | I21: 0.0002434457661 | J21: 0.0001300873817 | K21: 0.1493236408 | M21: 0.0753642629 | N21: 0.04749104264 | O21: 0.00170507248 | P21: 0.01389851495 | Q21: 0.0001211298163 | R21: 9.037089569e-05 | S21: 0.1386703937
A22: 2004 | B22: 1 | C22: 1 | D22: 20 | E22: 0.0838662405 | F22: 0.0510847875 | G22: 0.001886396115 | H22: 0.009173282704 | I22: 0.0002434457661 | J22: 0.0001300873817 | K22: 0.14638424 | M22: 0.07637573616 | N22: 0.04908586712 | O22: 0.00170507248 | P22: 0.008566412684 | Q22: 0.0001211298163 | R22: 9.037089569e-05 | S22: 0.1359445892
A23: 2004 | B23: 1 | C23: 1 | D23: 21 | E23: 0.08025091157 | F23: 0.04935205065 | G23: 0.001886396115 | H23: 0.01268746353 | I23: 0.0002434457661 | J23: 0.0001300873817 | K23: 0.144550355 | M23: 0.07308330994 | N23: 0.04742093134 | O23: 0.00170507248 | P23: 0.01184810847 | Q23: 0.0001211298163 | R23: 9.037089569e-05 | S23: 0.1342689229
A24: 2004 | B24: 1 | C24: 1 | D24: 22 | E24: 0.07539400541 | F24: 0.0486146281 | G24: 0.001886396115 | H24: 0.01249854118 | I24: 0.0002434457661 | J24: 0.0001300873817 | K24: 0.1387671039 | M24: 0.06866019784 | N24: 0.04671236374 | O24: 0.00170507248 | P24: 0.01167168452 | Q24: 0.0001211298163 | R24: 9.037089569e-05 | S24: 0.1289608193
A25: 2004 | B25: 1 | C25: 1 | D25: 23 | E25: 0.06865176249 | F25: 0.0469702865 | G25: 0.001886396115 | H25: 0.01037193662 | I25: 0.0002434457661 | J25: 0.0001300873817 | K25: 0.1282539149 | M25: 0.06252013763 | N25: 0.04513236435 | O25: 0.00170507248 | P25: 0.009685768149 | Q25: 0.0001211298163 | R25: 9.037089569e-05 | S25: 0.1192548433
A26: 2004 | B26: 1 | C26: 1 | D26: 24 | E26: 0.05815572747 | F26: 0.04672443039 | G26: 0.001886396115 | H26: 0.01062072118 | I26: 0.0002434457661 | J26: 0.0001300873817 | K26: 0.1177608083 | M26: 0.05296155486 | N26: 0.04489612845 | O26: 0.00170507248 | P26: 0.009918094056 | Q26: 0.0001211298163 | R26: 9.037089569e-05 | S26: 0.1096923506
A27: 2004 | B27: 1 | C27: 2 | D27: 1 | E27: 0.04977148102 | F27: 0.04240638286 | G27: 0.001886396115 | H27: 0.0086324742 | I27: 0.0002434457661 | J27: 0.0001300873817 | K27: 0.1030702673 | M27: 0.04532614649 | N27: 0.04074704381 | O27: 0.00170507248 | P27: 0.008061382044 | Q27: 0.0001211298163 | R27: 9.037089569e-05 | S27: 0.09605114554
A28: 2004 | B28: 1 | C28: 2 | D28: 2 | E28: 0.04599405571 | F28: 0.04224000542 | G28: 0.001886396115 | H28: 0.009628246695 | I28: 0.0002434457661 | J28: 0.0001300873817 | K28: 0.1001222371 | M28: 0.04188610152 | N28: 0.04058717663 | O28: 0.00170507248 | P28: 0.008991277962 | Q28: 0.0001211298163 | R28: 9.037089569e-05 | S28: 0.0933811293
A29: 2004 | B29: 1 | C29: 2 | D29: 3 | E29: 0.04179784373 | F29: 0.04206078441 | G29: 0.001886396115 | H29: 0.01121262999 | I29: 0.0002434457661 | J29: 0.0001300873817 | K29: 0.0973311874 | M29: 0.03806467377 | N29: 0.04041496844 | O29: 0.00170507248 | P29: 0.01047084439 | Q29: 0.0001211298163 | R29: 9.037089569e-05 | S29: 0.0908670598
A30: 2004 | B30: 1 | C30: 2 | D30: 4 | E30: 0.04082507782 | F30: 0.04251357216 | G30: 0.001886396115 | H30: 0.01079485847 | I30: 0.0002434457661 | J30: 0.0001300873817 | K30: 0.09639343771 | M30: 0.03717879033 | N30: 0.04085003885 | O30: 0.00170507248 | P30: 0.01008071107 | Q30: 0.0001211298163 | R30: 9.037089569e-05 | S30: 0.09002611345
A31: 2004 | B31: 1 | C31: 2 | D31: 5 | E31: 0.04096356734 | F31: 0.04232336807 | G31: 0.001886396115 | H31: 0.01119993184 | I31: 0.0002434457661 | J31: 0.0001300873817 | K31: 0.09674679651 | M31: 0.03730491068 | N31: 0.04066727734 | O31: 0.00170507248 | P31: 0.01045898631 | Q31: 0.0001211298163 | R31: 9.037089569e-05 | S31: 0.09034774752
A32: 2004 | B32: 1 | C32: 2 | D32: 6 | E32: 0.04264856886 | F32: 0.04336426486 | G32: 0.001886396115 | H32: 0.01040975222 | I32: 0.0002434457661 | J32: 0.0001300873817 | K32: 0.09868251519 | M32: 0.03883941647 | N32: 0.0416674444 | O32: 0.00170507248 | P32: 0.009721082006 | Q32: 0.0001211298163 | R32: 9.037089569e-05 | S32: 0.09214451607
A33: 2004 | B33: 1 | C33: 2 | D33: 7 | E33: 0.04545636785 | F33: 0.04557167315 | G33: 0.001886396115 | H33: 0.01245087926 | I33: 0.0002434457661 | J33: 0.0001300873817 | K33: 0.1057388495 | M33: 0.04139643719 | N33: 0.04378847799 | O33: 0.00170507248 | P33: 0.01162717573 | Q33: 0.0001211298163 | R33: 9.037089569e-05 | S33: 0.09872866411
A34: 2004 | B34: 1 | C34: 2 | D34: 8 | E34: 0.04874276185 | F34: 0.04965540211 | G34: 0.001886396115 | H34: 0.0136720704 | I34: 0.0002434457661 | J34: 0.0001300873817 | K34: 0.1143301636 | M34: 0.04438930726 | N34: 0.04771241282 | O34: 0.00170507248 | P34: 0.01276757744 | Q34: 0.0001211298163 | R34: 9.037089569e-05 | S34: 0.1067858707
A35: 2004 | B35: 1 | C35: 2 | D35: 9 | E35: 0.0579712851 | F35: 0.04607411876 | G35: 0.0002508906833 | H35: 0.01345372372 | I35: 0.0002434457661 | J35: 1.730162176e-05 | K35: 0.1180107656 | M35: 0.05279358594 | N35: 0.04427126317 | O35: 0.0002267746399 | P35: 0.01256367576 | Q35: 0.0001211298163 | R35: 1.201932913e-05 | S35: 0.1099884487
A36: 2004 | B36: 1 | C36: 2 | D36: 10 | E36: 0.06666238064 | F36: 0.04327373197 | G36: 0 | H36: 0.01357259602 | I36: 0.0002434457661 | J36: 0 | K36: 0.1237521544 | M36: 0.06070843721 | N36: 0.04158045402 | O36: 0 | P36: 0.01267468391 | Q36: 0.0001211298163 | R36: 0 | S36: 0.115084705
A37: 2004 | B37: 1 | C37: 2 | D37: 11 | E37: 0.06667928429 | F37: 0.04497759857 | G37: 0 | H37: 0.01537279292 | I37: 0.0002434457661 | J37: 0 | K37: 0.1272731215 | M37: 0.06072383111 | N37: 0.04321764923 | O37: 0 | P37: 0.01435578653 | Q37: 0.0001211298163 | R37: 0 | S37: 0.1184183967
A38: 2004 | B38: 1 | C38: 2 | D38: 12 | E38: 0.07132217885 | F38: 0.04297276288 | G38: 0 | H38: 0.01452471757 | I38: 0.0002434457661 | J38: 0 | K38: 0.1290631051 | M38: 0.06495204604 | N38: 0.04129126168 | O38: 0 | P38: 0.01356381667 | Q38: 0.0001211298163 | R38: 0 | S38: 0.1199282542
A39: 2004 | B39: 1 | C39: 2 | D39: 13 | E39: 0.06392486563 | F39: 0.04372567287 | G39: 0 | H39: 0.02000491471 | I39: 0.0002434457661 | J39: 0 | K39: 0.127898899 | M39: 0.05821542306 | N39: 0.04201471071 | O39: 0 | P39: 0.01868146449 | Q39: 0.0001211298163 | R39: 0 | S39: 0.1190327281
A40: 2004 | B40: 1 | C40: 2 | D40: 14 | E40: 0.06680390251 | F40: 0.04145372324 | G40: 0 | H40: 0.01810043359 | I40: 0.0002434457661 | J40: 0 | K40: 0.1266015051 | M40: 0.06083731907 | N40: 0.03983166126 | O40: 0 | P40: 0.01690297671 | Q40: 0.0001211298163 | R40: 0 | S40: 0.1176930869
A41: 2004 | B41: 1 | C41: 2 | D41: 15 | E41: 0.0659641229 | F41: 0.04039877477 | G41: 0 | H41: 0.01831087488 | I41: 0.0002434457661 | J41: 0 | K41: 0.1249172183 | M41: 0.06007254428 | N41: 0.03881799235 | O41: 0 | P41: 0.017099496 | Q41: 0.0001211298163 | R41: 0 | S41: 0.1161111624
A42: 2004 | B42: 1 | C42: 2 | D42: 16 | E42: 0.06929371456 | F42: 0.03909762564 | G42: 0 | H42: 0.01702761976 | I42: 0.0002434457661 | J42: 0 | K42: 0.1256624057 | M42: 0.06310475382 | N42: 0.03756775649 | O42: 0 | P42: 0.01590113622 | Q42: 0.0001211298163 | R42: 0 | S42: 0.1166947763
A43: 2004 | B43: 1 | C43: 2 | D43: 17 | E43: 0.06880814006 | F43: 0.04051125378 | G43: 0.0003772792231 | H43: 0.02384654635 | I43: 0.0002434457661 | J43: 2.601747633e-05 | K43: 0.1338126827 | M43: 0.06266254835 | N43: 0.03892607012 | O43: 0.0003410144961 | P43: 0.02226894817 | Q43: 0.0001211298163 | R43: 1.807417914e-05 | S43: 0.1243377851
A44: 2004 | B44: 1 | C44: 2 | D44: 18 | E44: 0.07743463833 | F44: 0.04181579937 | G44: 0.001886396115 | H44: 0.02174335577 | I44: 0.0002434457661 | J44: 0.0001300873817 | K44: 0.1432537227 | M44: 0.07051857185 | N44: 0.04017956953 | O44: 0.00170507248 | P44: 0.0203048968 | Q44: 0.0001211298163 | R44: 9.037089569e-05 | S44: 0.1329196114
A45: 2004 | B45: 1 | C45: 2 | D45: 19 | E45: 0.07748481837 | F45: 0.04618925671 | G45: 0.001886396115 | H45: 0.01469689195 | I45: 0.0002434457661 | J45: 0.0001300873817 | K45: 0.1406308963 | M45: 0.07056427006 | N45: 0.04438189583 | O45: 0.00170507248 | P45: 0.01372460063 | Q45: 0.0001211298163 | R45: 9.037089569e-05 | S45: 0.1305873397
A46: 2004 | B46: 1 | C46: 2 | D46: 20 | E46: 0.07821932628 | F46: 0.0470134794 | G46: 0.001886396115 | H46: 0.01035954538 | I46: 0.0002434457661 | J46: 0.0001300873817 | K46: 0.1378522803 | M46: 0.07123317548 | N46: 0.04517386713 | O46: 0.00170507248 | P46: 0.009674196661 | Q46: 0.0001211298163 | R46: 9.037089569e-05 | S46: 0.1279978125
A47: 2004 | B47: 1 | C47: 2 | D47: 21 | E47: 0.07491599434 | F47: 0.0461719717 | G47: 0.001886396115 | H47: 0.01276566668 | I47: 0.0002434457661 | J47: 0.0001300873817 | K47: 0.136113562 | M47: 0.06822488028 | N47: 0.04436528717 | O47: 0.00170507248 | P47: 0.01192113799 | Q47: 0.0001211298163 | R47: 9.037089569e-05 | S47: 0.1264278786
A48: 2004 | B48: 1 | C48: 2 | D48: 22 | E48: 0.06921011475 | F48: 0.04642434051 | G48: 0.001886396115 | H48: 0.0128008888 | I48: 0.0002434457661 | J48: 0.0001300873817 | K48: 0.1306952733 | M48: 0.06302862071 | N48: 0.04460778093 | O48: 0.00170507248 | P48: 0.01195402995 | Q48: 0.0001211298163 | R48: 9.037089569e-05 | S48: 0.1215070048
A49: 2004 | B49: 1 | C49: 2 | D49: 23 | E49: 0.06629548029 | F49: 0.04240971212 | G49: 0.001886396115 | H49: 0.009798755262 | I49: 0.0002434457661 | J49: 0.0001300873817 | K49: 0.1207638769 | M49: 0.06037430653 | N49: 0.0407502428 | O49: 0.00170507248 | P49: 0.009150506321 | Q49: 0.0001211298163 | R49: 9.037089569e-05 | S49: 0.1121916288
A50: 2004 | B50: 1 | C50: 2 | D50: 24 | E50: 0.05735564805 | F50: 0.04295278783 | G50: 0.001886396115 | H50: 0.00832755631 | I50: 0.0002434457661 | J50: 0.0001300873817 | K50: 0.1108959215 | M50: 0.05223293445 | N50: 0.04127206825 | O50: 0.00170507248 | P50: 0.00777663638 | Q50: 0.0001211298163 | R50: 9.037089569e-05 | S50: 0.1031982123
A51: 2004 | B51: 1 | C51: 3 | D51: 1 | E51: 0.05106810918 | F51: 0.04720467056 | G51: 0.001886396115 | H51: 0.01011317815 | I51: 0.0002434457661 | J51: 0.0001300873817 | K51: 0.1106458872 | M51: 0.04650696644 | N51: 0.04535757709 | O51: 0.00170507248 | P51: 0.009444128169 | Q51: 0.0001211298163 | R51: 9.037089569e-05 | S51: 0.1032252449
A52: 2004 | B52: 1 | C52: 3 | D52: 2 | E52: 0.04485577679 | F52: 0.04587723028 | G52: 0.001886396115 | H52: 0.01259663505 | I52: 0.0002434457661 | J52: 0.0001300873817 | K52: 0.1055895714 | M52: 0.04084948786 | N52: 0.04408207883 | O52: 0.00170507248 | P52: 0.01176328886 | Q52: 0.0001211298163 | R52: 9.037089569e-05 | S52: 0.09861142875
A53: 2004 | B53: 1 | C53: 3 | D53: 3 | E53: 0.04350196281 | F53: 0.04584109428 | G53: 0.001886396115 | H53: 0.01237975778 | I53: 0.0002434457661 | J53: 0.0001300873817 | K53: 0.1039827441 | M53: 0.03961658963 | N53: 0.04404735681 | O53: 0.00170507248 | P53: 0.01156075938 | Q53: 0.0001211298163 | R53: 9.037089569e-05 | S53: 0.09714127901
A54: 2004 | B54: 1 | C54: 3 | D54: 4 | E54: 0.04215612957 | F54: 0.0445887462 | G54: 0.001886396115 | H54: 0.01323983731 | I54: 0.0002434457661 | J54: 0.0001300873817 | K54: 0.1022446423 | M54: 0.03839095935 | N54: 0.04284401244 | O54: 0.00170507248 | P54: 0.01236393927 | Q54: 0.0001211298163 | R54: 9.037089569e-05 | S54: 0.09551548425
A55: 2004 | B55: 1 | C55: 3 | D55: 5 | E55: 0.04305905965 | F55: 0.04448368042 | G55: 0.001886396115 | H55: 0.01208406696 | I55: 0.0002434457661 | J55: 0.0001300873817 | K55: 0.1018867363 | M55: 0.03921324432 | N55: 0.04274305783 | O55: 0.00170507248 | P55: 0.01128463036 | Q55: 0.0001211298163 | R55: 9.037089569e-05 | S55: 0.09515750571
A56: 2004 | B56: 1 | C56: 3 | D56: 6 | E56: 0.04441945692 | F56: 0.0447924788 | G56: 0.001886396115 | H56: 0.01141477301 | I56: 0.0002434457661 | J56: 0.0001300873817 | K56: 0.102886638 | M56: 0.04045213785 | N56: 0.0430397731 | O56: 0.00170507248 | P56: 0.01065961439 | Q56: 0.0001211298163 | R56: 9.037089569e-05 | S56: 0.09606809853
A57: 2004 | B57: 1 | C57: 3 | D57: 7 | E57: 0.04749827418 | F57: 0.04591691612 | G57: 0.001886396115 | H57: 0.01223275506 | I57: 0.0002434457661 | J57: 0.0001300873817 | K57: 0.1079078746 | M57: 0.04325597088 | N57: 0.04412021178 | O57: 0.00170507248 | P57: 0.01142348181 | Q57: 0.0001211298163 | R57: 9.037089569e-05 | S57: 0.1007162377
A58: 2004 | B58: 1 | C58: 3 | D58: 8 | E58: 0.05018075317 | F58: 0.04783798155 | G58: 0.001886396115 | H58: 0.01309653265 | I58: 0.0002434457661 | J58: 0.0001300873817 | K58: 0.1133751966 | M58: 0.04569886454 | N58: 0.04596610695 | O58: 0.00170507248 | P58: 0.01223011511 | Q58: 0.0001211298163 | R58: 9.037089569e-05 | S58: 0.1058116598
A59: 2004 | B59: 1 | C59: 3 | D59: 9 | E59: 0.05787878499 | F59: 0.0442608105 | G59: 0.0002508906833 | H59: 0.0180206594 | I59: 0.0002434457661 | J59: 1.730162176e-05 | K59: 0.120671893 | M59: 0.05270934747 | N59: 0.04252890869 | O59: 0.0002267746399 | P59: 0.01682848008 | Q59: 0.0001211298163 | R59: 1.201932913e-05 | S59: 0.11242666
A60: 2004 | B60: 1 | C60: 3 | D60: 10 | E60: 0.0677206125 | F60: 0.03879771031 | G60: 0 | H60: 0.01929026034 | I60: 0.0002434457661 | J60: 0 | K60: 0.1260520289 | M60: 0.0616721532 | N60: 0.03727957669 | O60: 0 | P60: 0.01801408898 | Q60: 0.0001211298163 | R60: 0 | S60: 0.1170869487
A61: 2004 | B61: 1 | C61: 3 | D61: 11 | E61: 0.07224652056 | F61: 0.03861040621 | G61: 0 | H61: 0.01938459232 | I61: 0.0002434457661 | J61: 0 | K61: 0.1304849648 | M61: 0.06579383026 | N61: 0.03709960169 | O61: 0 | P61: 0.0181021803 | Q61: 0.0001211298163 | R61: 0 | S61: 0.1211167421
A62: 2004 | B62: 1 | C62: 3 | D62: 12 | E62: 0.06970272822 | F62: 0.0394208701 | G62: 0 | H62: 0.023761383 | I62: 0.0002434457661 | J62: 0 | K62: 0.1331284271 | M62: 0.06347723647 | N62: 0.03787835257 | O62: 0 | P62: 0.02218941891 | Q62: 0.0001211298163 | R62: 0 | S62: 0.1236661378
A63: 2004 | B63: 1 | C63: 3 | D63: 13 | E63: 0.06623329982 | F63: 0.04019211668 | G63: 0 | H63: 0.02295550989 | I63: 0.0002434457661 | J63: 0 | K63: 0.1296243722 | M63: 0.06031767969 | N63: 0.03861942068 | O63: 0 | P63: 0.02143685934 | Q63: 0.0001211298163 | R63: 0 | S63: 0.1204950895
A64: 2004 | B64: 1 | C64: 3 | D64: 14 | E64: 0.06546423115 | F64: 0.04018543339 | G64: 0 | H64: 0.02214951849 | I64: 0.0002434457661 | J64: 0 | K64: 0.1280426288 | M64: 0.05961730031 | N64: 0.0386129989 | O64: 0 | P64: 0.02068418932 | Q64: 0.0001211298163 | R64: 0 | S64: 0.1190356183
A65: 2004 | B65: 1 | C65: 3 | D65: 15 | E65: 0.06626206172 | F65: 0.03893456572 | G65: 0 | H65: 0.02173467083 | I65: 0.0002434457661 | J65: 0 | K65: 0.127174744 | M65: 0.06034387273 | N65: 0.03741107701 | O65: 0 | P65: 0.02029678642 | Q65: 0.0001211298163 | R65: 0 | S65: 0.118172866
A66: 2004 | B66: 1 | C66: 3 | D66: 16 | E66: 0.06494261651 | F66: 0.03936151623 | G66: 0 | H66: 0.02419711853 | I66: 0.0002434457661 | J66: 0 | K66: 0.128744697 | M66: 0.05914227363 | N66: 0.03782132118 | O66: 0 | P66: 0.02259632781 | Q66: 0.0001211298163 | R66: 0 | S66: 0.1196810524
A67: 2004 | B67: 1 | C67: 3 | D67: 17 | E67: 0.07293739451 | F67: 0.0386927703 | G67: 0.0003452104891 | H67: 0.02484142537 | I67: 0.0002434457661 | J67: 2.380599085e-05 | K67: 0.1370840524 | M67: 0.06642299888 | N67: 0.03717874292 | O67: 0.0003120282639 | P67: 0.02319800972 | Q67: 0.0001211298163 | R67: 1.653787391e-05 | S67: 0.1272494475
A68: 2004 | B68: 1 | C68: 3 | D68: 18 | E68: 0.08024954887 | F68: 0.04184922926 | G68: 0.001886396115 | H68: 0.02061568234 | I68: 0.0002434457661 | J68: 0.0001300873817 | K68: =SUM(E68:J68) -> 0.1449743897 | M68: =E68*V$5 -> 0.07308206895 | N68: =F68*W$5 -> 0.04021169134 | O68: =G68*X$5 -> 0.00170507248 | P68: =H68*AB$5 -> 0.01925182602 | Q68: =I68*Z$5 -> 0.0001211298163 | R68: =J68*AA$5 -> 9.037089569e-05 | S68: =SUM(M68:R68) -> 0.1344621595
A69: 2004 | B69: 1 | C69: 3 | D69: 19 | E69: 0.07749388548 | F69: 0.04629445752 | G69: 0.001886396115 | H69: 0.01597667931 | I69: 0.0002434457661 | J69: 0.0001300873817 | K69: 0.1420249516 | M69: 0.07057252735 | N69: 0.04448298019 | O69: 0.00170507248 | P69: 0.01491972205 | Q69: 0.0001211298163 | R69: 9.037089569e-05 | S69: 0.1318918028
A70: 2004 | B70: 1 | C70: 3 | D70: 20 | E70: 0.07508617398 | F70: 0.04718502747 | G70: 0.001886396115 | H70: 0.01432476355 | I70: 0.0002434457661 | J70: 0.0001300873817 | K70: 0.1388558943 | M70: 0.06837986034 | N70: 0.04533870262 | O70: 0.00170507248 | P70: 0.01337709085 | Q70: 0.0001211298163 | R70: 9.037089569e-05 | S70: 0.129012227
A71: 2004 | B71: 1 | C71: 3 | D71: 21 | E71: 0.07241410067 | F71: 0.04637277685 | G71: 0.001886396115 | H71: 0.01428246187 | I71: 0.0002434457661 | J71: 0.0001300873817 | K71: 0.1353292687 | M71: 0.06594644297 | N71: 0.04455823493 | O71: 0.00170507248 | P71: 0.0133375877 | Q71: 0.0001211298163 | R71: 9.037089569e-05 | S71: 0.1257588388
A72: 2004 | B72: 1 | C72: 3 | D72: 22 | E72: 0.06799951783 | F72: 0.04621271172 | G72: 0.001886396115 | H72: 0.01523923158 | I72: 0.0002434457661 | J72: 0.0001300873817 | K72: 0.1317113904 | M72: 0.06192614813 | N72: 0.04440443306 | O72: 0.00170507248 | P72: 0.01423106111 | Q72: 0.0001211298163 | R72: 9.037089569e-05 | S72: 0.1224782155
A73: 2004 | B73: 1 | C73: 3 | D73: 23 | E73: 0.06781366469 | F73: 0.04294829732 | G73: 0.001886396115 | H73: 0.01039404292 | I73: 0.0002434457661 | J73: 0.0001300873817 | K73: 0.1234159342 | M73: 0.06175689445 | N73: 0.04126775345 | O73: 0.00170507248 | P73: 0.009706411975 | Q73: 0.0001211298163 | R73: 9.037089569e-05 | S73: 0.1146476331
A74: 2004 | B74: 1 | C74: 3 | D74: 24 | E74: 0.06275534307 | F74: 0.04254547561 | G74: 0.001886396115 | H74: 0.008919891334 | I74: 0.0002434457661 | J74: 0.0001300873817 | K74: 0.1164806393 | M74: 0.05715035628 | N74: 0.04088069394 | O74: 0.00170507248 | P74: 0.008329784737 | Q74: 0.0001211298163 | R74: 9.037089569e-05 | S74: 0.1082774081
A75: 2004 | B75: 1 | C75: 4 | D75: 1 | E75: 0.04265202622 | F75: 0.042878809 | G75: 0.001886396115 | H75: 0.008255864402 | I75: 0.0002434457661 | J75: 0.0001300873817 | K75: 0.09604662889 | M75: 0.03884256504 | N75: 0.04120098417 | O75: 0.00170507248 | P75: 0.00770968734 | Q75: 0.0001211298163 | R75: 9.037089569e-05 | S75: 0.08966980974
A76: 2004 | B76: 1 | C76: 4 | D76: 2 | E76: 0.03962476036 | F76: 0.04241194348 | G76: 0.001886396115 | H76: 0.007450993162 | I76: 0.0002434457661 | J76: 0.0001300873817 | K76: 0.09174762627 | M76: 0.03608567911 | N76: 0.04075238685 | O76: 0.00170507248 | P76: 0.006958063366 | Q76: 0.0001211298163 | R76: 9.037089569e-05 | S76: 0.08571270252
A77: 2004 | B77: 1 | C77: 4 | D77: 3 | E77: 0.03503827906 | F77: 0.04515356835 | G77: 0.001886396115 | H77: 0.007677195264 | I77: 0.0002434457661 | J77: 0.0001300873817 | K77: 0.09012897193 | M77: 0.0319088389 | N77: 0.0433867334 | O77: 0.00170507248 | P77: 0.007169300784 | Q77: 0.0001211298163 | R77: 9.037089569e-05 | S77: 0.08438144627
A78: 2004 | B78: 1 | C78: 4 | D78: 4 | E78: 0.03551444688 | F78: 0.04422772772 | G78: 0.001886396115 | H78: 0.006778265857 | I78: 0.0002434457661 | J78: 0.0001300873817 | K78: 0.08878036972 | M78: 0.03234247784 | N78: 0.04249712042 | O78: 0.00170507248 | P78: 0.00632984118 | Q78: 0.0001211298163 | R78: 9.037089569e-05 | S78: 0.08308601263
A79: 2004 | B79: 1 | C79: 4 | D79: 5 | E79: 0.03491828098 | F79: 0.04293571795 | G79: 0.001886396115 | H79: 0.008189266476 | I79: 0.0002434457661 | J79: 0.0001300873817 | K79: 0.08830319466 | M79: 0.03179955843 | N79: 0.0412556663 | O79: 0.00170507248 | P79: 0.007647495284 | Q79: 0.0001211298163 | R79: 9.037089569e-05 | S79: 0.0826192932
A80: 2004 | B80: 1 | C80: 4 | D80: 6 | E80: 0.03664764006 | F80: 0.04327442117 | G80: 0.001886396115 | H80: 0.007131694228 | I80: 0.0002434457661 | J80: 0.0001300873817 | K80: 0.08931368472 | M80: 0.03337445998 | N80: 0.04158111625 | O80: 0.00170507248 | P80: 0.006659888053 | Q80: 0.0001211298163 | R80: 9.037089569e-05 | S80: 0.08353203748
A81: 2004 | B81: 1 | C81: 4 | D81: 7 | E81: 0.03926632287 | F81: 0.04274618664 | G81: 0.001886396115 | H81: 0.008693248389 | I81: 0.0002434457661 | J81: 0.0001300873817 | K81: 0.09296568717 | M81: 0.03575925542 | N81: 0.04107355126 | O81: 0.00170507248 | P81: 0.008118135641 | Q81: 0.0001211298163 | R81: 9.037089569e-05 | S81: 0.08686751551
A82: 2004 | B82: 1 | C82: 4 | D82: 8 | E82: 0.04361125895 | F82: 0.04358366673 | G82: 0.001886396115 | H82: 0.007842537364 | I82: 0.0002434457661 | J82: 0.0001300873817 | K82: 0.0972973923 | M82: 0.03971612399 | N82: 0.04187826119 | O82: 0.00170507248 | P82: 0.007323704471 | Q82: 0.0001211298163 | R82: 9.037089569e-05 | S82: 0.09083466285
A83: 2004 | B83: 1 | C83: 4 | D83: 9 | E83: 0.04942737599 | F83: 0.04052181548 | G83: 0.0002508906833 | H83: 0.01293187837 | I83: 0.0002434457661 | J83: 1.730162176e-05 | K83: 0.1033927079 | M83: 0.04501277516 | N83: 0.03893621854 | O83: 0.0002267746399 | P83: 0.01207635374 | Q83: 0.0001211298163 | R83: 1.201932913e-05 | S83: 0.09638527123
A84: 2004 | B84: 1 | C84: 4 | D84: 10 | E84: 0.05668336411 | F84: 0.03409010891 | G84: 0 | H84: 0.01595468873 | I84: 0.0002434457661 | J84: 0 | K84: 0.1069716075 | M84: 0.05162069547 | N84: 0.03275618121 | O84: 0 | P84: 0.01489918629 | Q84: 0.0001211298163 | R84: 0 | S84: 0.09939719278
A85: 2004 | B85: 1 | C85: 4 | D85: 11 | E85: 0.05758357346 | F85: 0.03540322493 | G85: 0 | H85: 0.01738991955 | I85: 0.0002434457661 | J85: 0 | K85: 0.1106201637 | M85: 0.05244050272 | N85: 0.0340179157 | O85: 0 | P85: 0.01623946761 | Q85: 0.0001211298163 | R85: 0 | S85: 0.1028190159
A86: 2004 | B86: 1 | C86: 4 | D86: 12 | E86: 0.05620559884 | F86: 0.03704010645 | G86: 0 | H86: 0.01950580467 | I86: 0.0002434457661 | J86: 0 | K86: 0.1129949557 | M86: 0.05118560176 | N86: 0.03559074692 | O86: 0 | P86: 0.0182153737 | Q86: 0.0001211298163 | R86: 0 | S86: 0.1051128522
A87: 2004 | B87: 1 | C87: 4 | D87: 13 | E87: 0.05643675048 | F87: 0.03745611431 | G87: 0 | H87: 0.0195245015 | I87: 0.0002434457661 | J87: 0 | K87: 0.113660812 | M87: 0.05139610811 | N87: 0.03599047661 | O87: 0 | P87: 0.01823283362 | Q87: 0.0001211298163 | R87: 0 | S87: 0.1057405482
A88: 2004 | B88: 1 | C88: 4 | D88: 14 | E88: 0.05112197612 | F88: 0.04001746871 | G88: 0 | H88: 0.02124232136 | I88: 0.0002434457661 | J88: 0 | K88: 0.112625212 | M88: 0.04655602226 | N88: 0.03845160659 | O88: 0 | P88: 0.01983700895 | Q88: 0.0001211298163 | R88: 0 | S88: 0.1049657676
A89: 2004 | B89: 1 | C89: 4 | D89: 15 | E89: 0.05030380082 | F89: 0.039382355 | G89: 0 | H89: 0.02171311633 | I89: 0.0002434457661 | J89: 0 | K89: 0.1116427179 | M89: 0.04581092221 | N89: 0.03784134454 | O89: 0 | P89: 0.02027665789 | Q89: 0.0001211298163 | R89: 0 | S89: 0.1040500545
A90: 2004 | B90: 1 | C90: 4 | D90: 16 | E90: 0.05544976976 | F90: 0.03811242719 | G90: 0 | H90: 0.02098249069 | I90: 0.0002434457661 | J90: 0 | K90: 0.1147881334 | M90: 0.05049727947 | N90: 0.03662110833 | O90: 0 | P90: 0.01959436771 | Q90: 0.0001211298163 | R90: 0 | S90: 0.1068338853
A91: 2004 | B91: 1 | C91: 4 | D91: 17 | E91: 0.06531640228 | F91: 0.03581760278 | G91: 0.0003150281513 | H91: 0.0192019357 | I91: 0.0002434457661 | J91: 2.172459274e-05 | K91: 0.1209161393 | M91: 0.05948267476 | N91: 0.03441607916 | O91: 0.0002847471042 | P91: 0.01793160757 | Q91: 0.0001211298163 | R91: 1.509193958e-05 | S91: 0.1122513304
A92: 2004 | B92: 1 | C92: 4 | D92: 18 | E92: 0.0685568177 | F92: 0.04102587239 | G92: 0.001886396115 | H92: 0.018613099 | I92: 0.0002434457661 | J92: 0.0001300873817 | K92: 0.1304557184 | M92: 0.06243367282 | N92: 0.03942055197 | O92: 0.00170507248 | P92: 0.0173817261 | Q92: 0.0001211298163 | R92: 9.037089569e-05 | S92: 0.1211525241
A93: 2004 | B93: 1 | C93: 4 | D93: 19 | E93: 0.06956067792 | F93: 0.04419121712 | G93: 0.001886396115 | H93: 0.01146443226 | I93: 0.0002434457661 | J93: 0.0001300873817 | K93: 0.1274762566 | M93: 0.06334787337 | N93: 0.04246203846 | O93: 0.00170507248 | P93: 0.01070598836 | Q93: 0.0001211298163 | R93: 9.037089569e-05 | S93: 0.1184324734
A94: 2004 | B94: 1 | C94: 4 | D94: 20 | E94: 0.06519524457 | F94: 0.04765849459 | G94: 0.001886396115 | H94: 0.009924117034 | I94: 0.0002434457661 | J94: 0.0001300873817 | K94: 0.1250377855 | M94: 0.05937233824 | N94: 0.04579364322 | O94: 0.00170507248 | P94: 0.009267574627 | Q94: 0.0001211298163 | R94: 9.037089569e-05 | S94: 0.1163501293
A95: 2004 | B95: 1 | C95: 4 | D95: 21 | E95: 0.06412150693 | F95: 0.04544134763 | G95: 0.001886396115 | H95: 0.01128550485 | I95: 0.0002434457661 | J95: 0.0001300873817 | K95: 0.1231082887 | M95: 0.05839450136 | N95: 0.04366325203 | O95: 0.00170507248 | P95: 0.01053889813 | Q95: 0.0001211298163 | R95: 9.037089569e-05 | S95: 0.1145132247
A96: 2004 | B96: 1 | C96: 4 | D96: 22 | E96: 0.0637144957 | F96: 0.04375311112 | G96: 0.001886396115 | H96: 0.007709139911 | I96: 0.0002434457661 | J96: 0.0001300873817 | K96: 0.117436676 | M96: 0.0580238423 | N96: 0.04204107532 | O96: 0.00170507248 | P96: 0.007199132093 | Q96: 0.0001211298163 | R96: 9.037089569e-05 | S96: 0.1091806229
A97: 2004 | B97: 1 | C97: 4 | D97: 23 | E97: 0.05805522791 | F97: 0.04264896533 | G97: 0.001886396115 | H97: 0.00593340795 | I97: 0.0002434457661 | J97: 0.0001300873817 | K97: 0.1088975304 | M97: 0.0528700314 | N97: 0.04098013416 | O97: 0.00170507248 | P97: 0.005540875907 | Q97: 0.0001211298163 | R97: 9.037089569e-05 | S97: 0.1013076147
A98: 2004 | B98: 1 | C98: 4 | D98: 24 | E98: 0.04793026348 | F98: 0.04303698043 | G98: 0.001886396115 | H98: 0.007300808654 | I98: 0.0002434457661 | J98: 0.0001300873817 | K98: 0.1005279818 | M98: 0.0436493771 | N98: 0.04135296643 | O98: 0.00170507248 | P98: 0.006817814503 | Q98: 0.0001211298163 | R98: 9.037089569e-05 | S98: 0.09373673123
A99: 2004 | B99: 1 | C99: 5 | D99: 1 | E99: 0.05192950079 | F99: 0.04402277299 | G99: 0.001886396115 | H99: 0.01392564042 | I99: 0.0002434457661 | J99: 0.0001300873817 | K99: 0.1121378435 | M99: 0.04729142295 | N99: 0.04230018547 | O99: 0.00170507248 | P99: 0.01300437221 | Q99: 0.0001211298163 | R99: 9.037089569e-05 | S99: 0.1045125538
A100: 2004 | B100: 1 | C100: 5 | D100: 2 | E100: 0.04835084832 | F100: 0.04435753753 | G100: 0.001886396115 | H100: 0.01329594444 | I100: 0.0002434457661 | J100: 0.0001300873817 | K100: 0.1082642596 | M100: 0.04403239745 | N100: 0.04262185085 | O100: 0.00170507248 | P100: 0.01241633456 | Q100: 0.0001211298163 | R100: 9.037089569e-05 | S100: 0.1009871561
A101: 2004 | B101: 1 | C101: 5 | D101: 3 | E101: 0.04436976624 | F101: 0.0449507083 | G101: 0.001886396115 | H101: 0.0146842409 | I101: 0.0002434457661 | J101: 0.0001300873817 | K101: 0.1062646447 | M101: 0.04040688529 | N101: 0.04319181116 | O101: 0.00170507248 | P101: 0.01371278653 | Q101: 0.0001211298163 | R101: 9.037089569e-05 | S101: 0.09922805617
A102: 2004 | B102: 1 | C102: 5 | D102: 4 | E102: 0.04547297698 | F102: 0.04388186541 | G102: 0.001886396115 | H102: 0.01431970787 | I102: 0.0002434457661 | J102: 0.0001300873817 | K102: 0.1059344795 | M102: 0.04141156288 | N102: 0.04216479152 | O102: 0.00170507248 | P102: 0.01337236964 | Q102: 0.0001211298163 | R102: 9.037089569e-05 | S102: 0.09886529723
A103: 2004 | B103: 1 | C103: 5 | D103: 5 | E103: 0.04620381 | F103: 0.04478581126 | G103: 0.001886396115 | H103: 0.01399730204 | I103: 0.0002434457661 | J103: 0.0001300873817 | K103: 0.1072468526 | M103: 0.04207712163 | N103: 0.04303336646 | O103: 0.00170507248 | P103: 0.01307129297 | Q103: 0.0001211298163 | R103: 9.037089569e-05 | S103: 0.1000983542
A104: 2004 | B104: 1 | C104: 5 | D104: 6 | E104: 0.04909583344 | F104: 0.0452737778 | G104: 0.001886396115 | H104: 0.01389431368 | I104: 0.0002434457661 | J104: 0.0001300873817 | K104: 0.1105238542 | M104: 0.0447108443 | N104: 0.04350223913 | O104: 0.00170507248 | P104: 0.01297511793 | Q104: 0.0001211298163 | R104: 9.037089569e-05 | S104: 0.1031047746
A105: 2004 | B105: 1 | C105: 5 | D105: 7 | E105: 0.05767070685 | F105: 0.04867715718 | G105: 0.001886396115 | H105: 0.01620324182 | I105: 0.0002434457661 | J105: 0.0001300873817 | K105: 0.1248110351 | M105: 0.0525198538 | N105: 0.04677244609 | O105: 0.00170507248 | P105: 0.01513129604 | Q105: 0.0001211298163 | R105: 9.037089569e-05 | S105: 0.1163401691
A106: 2004 | B106: 1 | C106: 5 | D106: 8 | E106: 0.06224692195 | F106: 0.05365730922 | G106: 0.001886396115 | H106: 0.01896734787 | I106: 0.0002434457661 | J106: 0.0001300873817 | K106: 0.1371315083 | M106: 0.05668734474 | N106: 0.05155772745 | O106: 0.00170507248 | P106: 0.01771253919 | Q106: 0.0001211298163 | R106: 9.037089569e-05 | S106: 0.1278741846
A107: 2004 | B107: 1 | C107: 5 | D107: 9 | E107: 0.07104656833 | F107: 0.0520589021 | G107: 0.0002508906833 | H107: 0.0213173638 | I107: 0.0002434457661 | J107: 1.730162176e-05 | K107: 0.1449344723 | M107: 0.06470105164 | N107: 0.05002186514 | O107: 0.0002267746399 | P107: 0.01990708686 | Q107: 0.0001211298163 | R107: 1.201932913e-05 | S107: 0.1349899274
A108: 2004 | B108: 1 | C108: 5 | D108: 10 | E108: 0.07192063321 | F108: 0.04795167492 | G108: 0 | H108: 0.02640437787 | I108: 0.0002434457661 | J108: 0 | K108: 0.1465201318 | M108: 0.06549704951 | N108: 0.04607535156 | O108: 0 | P108: 0.02465756314 | Q108: 0.0001211298163 | R108: 0 | S108: 0.136351094
A109: 2004 | B109: 1 | C109: 5 | D109: 11 | E109: 0.0728942547 | F109: 0.0481947473 | G109: 0 | H109: 0.02657316401 | I109: 0.0002434457661 | J109: 0 | K109: 0.1479056118 | M109: 0.0663837121 | N109: 0.04630891265 | O109: 0 | P109: 0.02481518302 | Q109: 0.0001211298163 | R109: 0 | S109: 0.1376289376
A110: 2004 | B110: 1 | C110: 5 | D110: 12 | E110: 0.0698245804 | F110: 0.05045018195 | G110: 0 | H110: 0.02522648823 | I110: 0.0002434457661 | J110: 0 | K110: 0.1457446963 | M110: 0.06358820543 | N110: 0.04847609335 | O110: 0 | P110: 0.02355759827 | Q110: 0.0001211298163 | R110: 0 | S110: 0.1357430269
A111: 2004 | B111: 1 | C111: 5 | D111: 13 | E111: 0.06371065472 | F111: 0.05258167502 | G111: 0 | H111: 0.02769341667 | I111: 0.0002434457661 | J111: 0 | K111: 0.1442291922 | M111: 0.05802034438 | N111: 0.05052418224 | O111: 0 | P111: 0.02586132396 | Q111: 0.0001211298163 | R111: 0 | S111: 0.1345269804
A112: 2004 | B112: 1 | C112: 5 | D112: 14 | E112: 0.0621095289 | F112: 0.05216512996 | G112: 0 | H112: 0.02648751376 | I112: 0.0002434457661 | J112: 0 | K112: 0.1410056184 | M112: 0.05656222294 | N112: 0.05012393636 | O112: 0 | P112: 0.02473519907 | Q112: 0.0001211298163 | R112: 0 | S112: 0.1315424882
A113: 2004 | B113: 1 | C113: 5 | D113: 15 | E113: 0.06290446451 | F113: 0.04964889923 | G113: 0 | H113: 0.02676375271 | I113: 0.0002434457661 | J113: 0 | K113: 0.1395605622 | M113: 0.05728615896 | N113: 0.04770616439 | O113: 0 | P113: 0.02499316309 | Q113: 0.0001211298163 | R113: 0 | S113: 0.1301066163
A114: 2004 | B114: 1 | C114: 5 | D114: 16 | E114: 0.07015713567 | F114: 0.04676091793 | G114: 0 | H114: 0.02607701961 | I114: 0.0002434457661 | J114: 0 | K114: 0.143238519 | M114: 0.06389105856 | N114: 0.04493118826 | O114: 0 | P114: 0.02435186168 | Q114: 0.0001211298163 | R114: 0 | S114: 0.1332952383
A115: 2004 | B115: 1 | C115: 5 | D115: 17 | E115: 0.07852324598 | F115: 0.04578417443 | G115: 0.0002508906833 | H115: 0.02770432397 | I115: 0.0002434457661 | J115: 1.730162176e-05 | K115: 0.1525233825 | M115: 0.07150995062 | N115: 0.04399266421 | O115: 0.0002267746399 | P115: 0.02587150968 | Q115: 0.0001211298163 | R115: 1.201932913e-05 | S115: 0.1417340483
A116: 2004 | B116: 1 | C116: 5 | D116: 18 | E116: 0.07998961614 | F116: 0.04992896901 | G116: 0.001886396115 | H116: 0.02681005127 | I116: 0.0002434457661 | J116: 0.0001300873817 | K116: 0.1589885657 | M116: 0.07284535209 | N116: 0.04797527519 | O116: 0.00170507248 | P116: 0.02503639871 | Q116: 0.0001211298163 | R116: 9.037089569e-05 | S116: 0.1477735992
A117: 2004 | B117: 1 | C117: 5 | D117: 19 | E117: 0.0829188942 | F117: 0.05188547166 | G117: 0.001886396115 | H117: 0.01978339664 | I117: 0.0002434457661 | J117: 0.0001300873817 | K117: 0.1568476918 | M117: 0.07551300199 | N117: 0.04985522094 | O117: 0.00170507248 | P117: 0.01847460123 | Q117: 0.0001211298163 | R117: 9.037089569e-05 | S117: 0.1457593974
A118: 2004 | B118: 1 | C118: 5 | D118: 20 | E118: 0.0797225424 | F118: 0.05232885156 | G118: 0.001886396115 | H118: 0.02044136915 | I118: 0.0002434457661 | J118: 0.0001300873817 | K118: 0.1547526924 | M118: 0.07260213201 | N118: 0.05028125163 | O118: 0.00170507248 | P118: 0.01908904474 | Q118: 0.0001211298163 | R118: 9.037089569e-05 | S118: 0.1438890016
A119: 2004 | B119: 1 | C119: 5 | D119: 21 | E119: 0.07943155663 | F119: 0.05179368619 | G119: 0.001886396115 | H119: 0.01737817593 | I119: 0.0002434457661 | J119: 0.0001300873817 | K119: 0.150863348 | M119: 0.0723371356 | N119: 0.04976702699 | O119: 0.00170507248 | P119: 0.01622850091 | Q119: 0.0001211298163 | R119: 9.037089569e-05 | S119: 0.1402492367
A120: 2004 | B120: 1 | C120: 5 | D120: 22 | E120: 0.07369240388 | F120: 0.04962305449 | G120: 0.001886396115 | H120: 0.01696325941 | I120: 0.0002434457661 | J120: 0.0001300873817 | K120: 0.142538647 | M120: 0.06711057467 | N120: 0.04768133094 | O120: 0.00170507248 | P120: 0.01584103372 | Q120: 0.0001211298163 | R120: 9.037089569e-05 | S120: 0.1325495125
A121: 2004 | B121: 1 | C121: 5 | D121: 23 | E121: 0.06723548601 | F121: 0.04789340103 | G121: 0.001886396115 | H121: 0.01406562559 | I121: 0.0002434457661 | J121: 0.0001300873817 | K121: 0.1314544419 | M121: 0.06123035573 | N121: 0.0460193579 | O121: 0.00170507248 | P121: 0.01313509649 | Q121: 0.0001211298163 | R121: 9.037089569e-05 | S121: 0.1223013833
A122: 2004 | B122: 1 | C122: 5 | D122: 24 | E122: 0.05816317473 | F122: 0.04580396937 | G122: 0.001886396115 | H122: 0.01242539348 | I122: 0.0002434457661 | J122: 0.0001300873817 | K122: 0.1186524668 | M122: 0.05296833697 | N122: 0.04401168459 | O122: 0.00170507248 | P122: 0.01160337599 | Q122: 0.0001211298163 | R122: 9.037089569e-05 | S122: 0.1104999707
A123: 2004 | B123: 1 | C123: 6 | D123: 1 | E123: 0.05831527009 | F123: 0.04594073191 | G123: 0.001886396115 | H123: 0.01587044303 | I123: 0.0002434457661 | J123: 0.0001300873817 | K123: 0.1223863743 | M123: 0.05310684795 | N123: 0.04414309568 | O123: 0.00170507248 | P123: 0.01482051397 | Q123: 0.0001211298163 | R123: 9.037089569e-05 | S123: 0.1139870308
A124: 2004 | B124: 1 | C124: 6 | D124: 2 | E124: 0.05401794876 | F124: 0.04594321042 | G124: 0.001886396115 | H124: 0.01735784098 | I124: 0.0002434457661 | J124: 0.0001300873817 | K124: 0.1195789294 | M124: 0.04919334141 | N124: 0.04414547721 | O124: 0.00170507248 | P124: 0.01620951125 | Q124: 0.0001211298163 | R124: 9.037089569e-05 | S124: 0.1114649031
A125: 2004 | B125: 1 | C125: 6 | D125: 3 | E125: 0.05287960758 | F125: 0.04650135798 | G125: 0.001886396115 | H125: 0.01700251529 | I125: 0.0002434457661 | J125: 0.0001300873817 | K125: 0.1186434101 | M125: 0.04815667106 | N125: 0.04468178475 | O125: 0.00170507248 | P125: 0.01587769257 | Q125: 0.0001211298163 | R125: 9.037089569e-05 | S125: 0.1106327216
A126: 2004 | B126: 1 | C126: 6 | D126: 4 | E126: 0.05425115587 | F126: 0.04600649188 | G126: 0.001886396115 | H126: 0.01647941801 | I126: 0.0002434457661 | J126: 0.0001300873817 | K126: 0.118996995 | M126: 0.04940571966 | N126: 0.04420628249 | O126: 0.00170507248 | P126: 0.01538920145 | Q126: 0.0001211298163 | R126: 9.037089569e-05 | S126: 0.1109177768
A127: 2004 | B127: 1 | C127: 6 | D127: 5 | E127: 0.05586480014 | F127: 0.04546845943 | G127: 0.001886396115 | H127: 0.01693507943 | I127: 0.0002434457661 | J127: 0.0001300873817 | K127: 0.1205282683 | M127: 0.05087524146 | N127: 0.04368930296 | O127: 0.00170507248 | P127: 0.01581471801 | Q127: 0.0001211298163 | R127: 9.037089569e-05 | S127: 0.1122958356
A128: 2004 | B128: 1 | C128: 6 | D128: 6 | E128: 0.05912511959 | F128: 0.0466876695 | G128: 0.001886396115 | H128: 0.01644813489 | I128: 0.0002434457661 | J128: 0.0001300873817 | K128: 0.1245208532 | M128: 0.05384436582 | N128: 0.044860806 | O128: 0.00170507248 | P128: 0.0153599879 | Q128: 0.0001211298163 | R128: 9.037089569e-05 | S128: 0.1159817329
A129: 2004 | B129: 1 | C129: 6 | D129: 7 | E129: 0.06751352834 | F129: 0.04921090383 | G129: 0.001886396115 | H129: 0.01652265919 | I129: 0.0002434457661 | J129: 0.0001300873817 | K129: 0.1355070206 | M129: 0.06148356474 | N129: 0.04728530752 | O129: 0.00170507248 | P129: 0.01542958195 | Q129: 0.0001211298163 | R129: 9.037089569e-05 | S129: 0.1261150274
A130: 2004 | B130: 1 | C130: 6 | D130: 8 | E130: 0.07028224729 | F130: 0.05435935431 | G130: 0.001886396115 | H130: 0.02212476021 | I130: 0.0002434457661 | J130: 0.0001300873817 | K130: 0.1490262911 | M130: 0.06400499585 | N130: 0.05223230189 | O130: 0.00170507248 | P130: 0.02066106895 | Q130: 0.0001211298163 | R130: 9.037089569e-05 | S130: 0.1388149399
A131: 2004 | B131: 1 | C131: 6 | D131: 9 | E131: 0.07504214127 | F131: 0.05199163618 | G131: 0.0002207083455 | H131: 0.02449697956 | I131: 0.0002434457661 | J131: 1.522022366e-05 | K131: 0.1520101313 | M131: 0.0683397604 | N131: 0.0499572313 | O131: 0.0001994934802 | P131: 0.02287635116 | Q131: 0.0001211298163 | R131: 1.05733948e-05 | S131: 0.1415045396
A132: 2004 | B132: 1 | C132: 6 | D132: 10 | E132: 0.07610552579 | F132: 0.04929186335 | G132: 0 | H132: 0.02735718831 | I132: 0.0002434457661 | J132: 0 | K132: =SUM(E132:J132) -> 0.1529980232 | M132: =E132*V$5 -> 0.06930816885 | N132: =F132*W$5 -> 0.04736309914 | O132: =G132*X$5 -> 0 | P132: =H132*AB$5 -> 0.02554733921 | Q132: =I132*Z$5 -> 0.0001211298163 | R132: =J132*AA$5 -> 0 | S132: =SUM(M132:R132) -> 0.142339737
A133: 2004 | B133: 1 | C133: 6 | D133: 11 | E133: 0.07221494185 | F133: 0.05036169456 | G133: 0 | H133: 0.0284071797 | I133: 0.0002434457661 | J133: 0 | K133: 0.1512272619 | M133: 0.065765072 | N133: 0.04839106842 | O133: 0 | P133: 0.02652786711 | Q133: 0.0001211298163 | R133: 0 | S133: 0.1408051373
A134: 2004 | B134: 1 | C134: 6 | D134: 12 | E134: 0.06956666079 | F134: 0.05093458697 | G134: 0 | H134: 0.02993169374 | I134: 0.0002434457661 | J134: 0 | K134: 0.1506763873 | M134: 0.06335332188 | N134: 0.04894154386 | O134: 0 | P134: 0.02795152501 | Q134: 0.0001211298163 | R134: 0 | S134: 0.1403675206
A135: 2004 | B135: 1 | C135: 6 | D135: 13 | E135: 0.06783343496 | F135: 0.05021381786 | G135: 0 | H135: 0.0296558691 | I135: 0.0002434457661 | J135: 0 | K135: 0.1479465677 | M135: 0.06177489894 | N135: 0.04824897807 | O135: 0 | P135: 0.0276939479 | Q135: 0.0001211298163 | R135: 0 | S135: 0.1378389547
A136: 2004 | B136: 1 | C136: 6 | D136: 14 | E136: 0.06632234842 | F136: 0.05016137701 | G136: 0 | H136: 0.02847441808 | I136: 0.0002434457661 | J136: 0 | K136: 0.1452015893 | M136: 0.06039877493 | N136: 0.0481985892 | O136: 0 | P136: 0.02659065725 | Q136: 0.0001211298163 | R136: 0 | S136: 0.1353091512
A137: 2004 | B137: 1 | C137: 6 | D137: 15 | E137: 0.06434571295 | F137: 0.04932971117 | G137: 0 | H137: 0.02973974486 | I137: 0.0002434457661 | J137: 0 | K137: 0.1436586147 | M137: 0.05859868245 | N137: 0.04739946599 | O137: 0 | P137: 0.02777227475 | Q137: 0.0001211298163 | R137: 0 | S137: 0.133891553
A138: 2004 | B138: 1 | C138: 6 | D138: 16 | E138: 0.06821164038 | F138: 0.04817844377 | G138: 0 | H138: 0.02976479262 | I138: 0.0002434457661 | J138: 0 | K138: 0.1463983225 | M138: 0.06211932498 | N138: 0.04629324707 | O138: 0 | P138: 0.02779566544 | Q138: 0.0001211298163 | R138: 0 | S138: 0.1363293673
A139: 2004 | B139: 1 | C139: 6 | D139: 17 | E139: 0.07836344782 | F139: 0.04637549453 | G139: 0.0002207083455 | H139: 0.02951980459 | I139: 0.0002434457661 | J139: 1.522022366e-05 | K139: 0.1547381213 | M139: 0.07136442482 | N139: 0.04456084627 | O139: 0.0001994934802 | P139: 0.0275668849 | Q139: 0.0001211298163 | R139: 1.05733948e-05 | S139: 0.1438233527
A140: 2004 | B140: 1 | C140: 6 | D140: 18 | E140: 0.08391993781 | F140: 0.04898882692 | G140: 0.001886396115 | H140: 0.02702342017 | I140: 0.0002434457661 | J140: 0.0001300873817 | K140: 0.1621921142 | M140: 0.07642463749 | N140: 0.04707192036 | O140: 0.00170507248 | P140: 0.02523565192 | Q140: 0.0001211298163 | R140: 9.037089569e-05 | S140: 0.150648783
A141: 2004 | B141: 1 | C141: 6 | D141: 19 | E141: 0.08175295234 | F141: 0.05529897946 | G141: 0.001886396115 | H141: 0.02497631394 | I141: 0.0002434457661 | J141: 0.0001300873817 | K141: 0.164288175 | M141: 0.0744511961 | N141: 0.05313516001 | O141: 0.00170507248 | P141: 0.02332397457 | Q141: 0.0001211298163 | R141: 9.037089569e-05 | S141: 0.1528269039
A142: 2004 | B142: 1 | C142: 6 | D142: 20 | E142: 0.08793642723 | F142: 0.05322312171 | G142: 0.001886396115 | H142: 0.01760073059 | I142: 0.0002434457661 | J142: 0.0001300873817 | K142: 0.1610202088 | M142: 0.08008239459 | N142: 0.05114052947 | O142: 0.00170507248 | P142: 0.01643633219 | Q142: 0.0001211298163 | R142: 9.037089569e-05 | S142: 0.1495758294
A143: 2004 | B143: 1 | C143: 6 | D143: 21 | E143: 0.0807755645 | F143: 0.05413892335 | G143: 0.001886396115 | H143: 0.02144062801 | I143: 0.0002434457661 | J143: 0.0001300873817 | K143: 0.1586150451 | M143: 0.07356110355 | N143: 0.05202049628 | O143: 0.00170507248 | P143: 0.02002219638 | Q143: 0.0001211298163 | R143: 9.037089569e-05 | S143: 0.1475203694
A144: 2004 | B144: 1 | C144: 6 | D144: 22 | E144: 0.08007917248 | F144: 0.05139732484 | G144: 0.001886396115 | H144: 0.01635414623 | I144: 0.0002434457661 | J144: 0.0001300873817 | K144: 0.1500905728 | M144: 0.07292690971 | N144: 0.04938617505 | O144: 0.00170507248 | P144: 0.01527221718 | Q144: 0.0001211298163 | R144: 9.037089569e-05 | S144: 0.1395018751
A145: 2004 | B145: 1 | C145: 6 | D145: 23 | E145: 0.07607515584 | F145: 0.04781631061 | G145: 0.001886396115 | H145: 0.01494800402 | I145: 0.0002434457661 | J145: 0.0001300873817 | K145: 0.1410993997 | M145: 0.06928051139 | N145: 0.04594528398 | O145: 0.00170507248 | P145: 0.01395910007 | Q145: 0.0001211298163 | R145: 9.037089569e-05 | S145: 0.1311014686
A146: 2004 | B146: 1 | C146: 6 | D146: 24 | E146: 0.06783687802 | F146: 0.04694366392 | G146: 0.001886396115 | H146: 0.01409569632 | I146: 0.0002434457661 | J146: 0.0001300873817 | K146: 0.1311361675 | M146: 0.06177803448 | N146: 0.04510678349 | O146: 0.00170507248 | P146: 0.01316317785 | Q146: 0.0001211298163 | R146: 9.037089569e-05 | S146: 0.121964569
A147: 2004 | B147: 1 | C147: 7 | D147: 1 | E147: 0.05889479947 | F147: 0.04631865414 | G147: 0.001886396115 | H147: 0.01595210505 | I147: 0.0002434457661 | J147: 0.0001300873817 | K147: 0.1234254879 | M147: 0.05363461673 | N147: 0.04450623001 | O147: 0.00170507248 | P147: 0.01489677353 | Q147: 0.0001211298163 | R147: 9.037089569e-05 | S147: 0.1149541935
A148: 2004 | B148: 1 | C148: 7 | D148: 2 | E148: 0.0545829347 | F148: 0.04627323484 | G148: 0.001886396115 | H148: 0.01748293535 | I148: 0.0002434457661 | J148: 0.0001300873817 | K148: 0.1205990342 | M148: 0.0497078657 | N148: 0.04446258794 | O148: 0.00170507248 | P148: 0.01632632984 | Q148: 0.0001211298163 | R148: 9.037089569e-05 | S148: 0.1124133567
A149: 2004 | B149: 1 | C149: 7 | D149: 3 | E149: 0.0534813575 | F149: 0.04677550936 | G149: 0.001886396115 | H149: 0.01713253369 | I149: 0.0002434457661 | J149: 0.0001300873817 | K149: 0.1196493298 | M149: 0.04870467574 | N149: 0.04494520873 | O149: 0.00170507248 | P149: 0.01599910944 | Q149: 0.0001211298163 | R149: 9.037089569e-05 | S149: 0.1115655671
A150: 2004 | B150: 1 | C150: 7 | D150: 4 | E150: 0.05484375468 | F150: 0.04633044576 | G150: 0.001886396115 | H150: 0.01656819486 | I150: 0.0002434457661 | J150: 0.0001300873817 | K150: 0.1200023246 | M150: 0.04994539056 | N150: 0.04451756024 | O150: 0.00170507248 | P150: 0.01547210515 | Q150: 0.0001211298163 | R150: 9.037089569e-05 | S150: 0.1118516291
A151: 2004 | B151: 1 | C151: 7 | D151: 5 | E151: 0.05646273561 | F151: 0.04582101031 | G151: 0.001886396115 | H151: 0.01701163741 | I151: 0.0002434457661 | J151: 0.0001300873817 | K151: 0.1215553126 | M151: 0.05141977239 | N151: 0.04402805872 | O151: 0.00170507248 | P151: 0.01588621121 | Q151: 0.0001211298163 | R151: 9.037089569e-05 | S151: 0.1132506155
A152: 2004 | B152: 1 | C152: 7 | D152: 6 | E152: 0.05980431529 | F152: 0.04692907085 | G152: 0.001886396115 | H152: 0.01656603837 | I152: 0.0002434457661 | J152: 0.0001300873817 | K152: 0.1255593538 | M152: 0.05446289923 | N152: 0.04509276144 | O152: 0.00170507248 | P152: 0.01547009133 | Q152: 0.0001211298163 | R152: 9.037089569e-05 | S152: 0.1169423252
A153: 2004 | B153: 1 | C153: 7 | D153: 7 | E153: 0.06826947237 | F153: 0.04952447572 | G153: 0.001886396115 | H153: 0.01658676127 | I153: 0.0002434457661 | J153: 0.0001300873817 | K153: 0.1366406386 | M153: 0.06217199171 | N153: 0.04758660951 | O153: 0.00170507248 | P153: 0.01548944328 | Q153: 0.0001211298163 | R153: 9.037089569e-05 | S153: 0.1271646177
A154: 2004 | B154: 1 | C154: 7 | D154: 8 | E154: 0.07101620845 | F154: 0.05478467403 | G154: 0.001886396115 | H154: 0.02222357922 | I154: 0.0002434457661 | J154: 0.0001300873817 | K154: 0.150284391 | M154: 0.06467340335 | N154: 0.05264097908 | O154: 0.00170507248 | P154: 0.02075335047 | Q154: 0.0001211298163 | R154: 9.037089569e-05 | S154: 0.1399843061
A155: 2004 | B155: 1 | C155: 7 | D155: 9 | E155: 0.07581150647 | F155: 0.0523114771 | G155: 0.0002207083455 | H155: 0.02466291253 | I155: 0.0002434457661 | J155: 1.522022366e-05 | K155: 0.1532652704 | M155: 0.06904040984 | N155: 0.05026455702 | O155: 0.0001994934802 | P155: 0.02303130662 | Q155: 0.0001211298163 | R155: 1.05733948e-05 | S155: 0.1426674702
A156: 2004 | B156: 1 | C156: 7 | D156: 10 | E156: 0.0768667563 | F156: 0.04955765421 | G156: 0 | H156: 0.0275933138 | I156: 0.0002434457661 | J156: 0 | K156: 0.1542611701 | M156: 0.07000141014 | N156: 0.04761848974 | O156: 0 | P156: 0.02576784352 | Q156: 0.0001211298163 | R156: 0 | S156: 0.1435088732
A157: 2004 | B157: 1 | C157: 7 | D157: 11 | E157: 0.07292885016 | F157: 0.05177991653 | G157: 0 | H157: 0.02861307573 | I157: 0.0002434457661 | J157: 0 | K157: 0.1535652882 | M157: 0.06641521767 | N157: 0.04975379613 | O157: 0 | P157: 0.02672014183 | Q157: 0.0001211298163 | R157: 0 | S157: 0.1430102854
A158: 2004 | B158: 1 | C158: 7 | D158: 12 | E158: 0.0702779943 | F158: 0.05330465406 | G158: 0 | H158: 0.03018247625 | I158: 0.0002434457661 | J158: 0 | K158: 0.1540085704 | M158: 0.06400112272 | N158: 0.05121887149 | O158: 0 | P158: 0.02818571669 | Q158: 0.0001211298163 | R158: 0 | S158: 0.1435268407
A159: 2004 | B159: 1 | C159: 7 | D159: 13 | E159: 0.06853303297 | F159: 0.05132572403 | G159: 0 | H159: 0.02992134862 | I159: 0.0002434457661 | J159: 0 | K159: 0.1500235514 | M159: 0.06241201242 | N159: 0.04931737594 | O159: 0 | P159: 0.02794186428 | Q159: 0.0001211298163 | R159: 0 | S159: 0.1397923825
A160: 2004 | B160: 1 | C160: 7 | D160: 14 | E160: 0.06690407909 | F160: 0.05055870504 | G160: 0 | H160: 0.02866135503 | I160: 0.0002434457661 | J160: 0 | K160: 0.1463675849 | M160: 0.06092854838 | N160: 0.04858036999 | O160: 0 | P160: 0.02676522715 | Q160: 0.0001211298163 | R160: 0 | S160: 0.1363952753
A161: 2004 | B161: 1 | C161: 7 | D161: 15 | E161: 0.06486078143 | F161: 0.04988419083 | G161: 0 | H161: 0.02987708368 | I161: 0.0002434457661 | J161: 0 | K161: 0.1448655017 | M161: 0.05906774764 | N161: 0.04793224916 | O161: 0 | P161: 0.02790052774 | Q161: 0.0001211298163 | R161: 0 | S161: 0.1350216544
A162: 2004 | B162: 1 | C162: 7 | D162: 16 | E162: 0.06880123416 | F162: 0.04866845144 | G162: 0 | H162: 0.02993754826 | I162: 0.0002434457661 | J162: 0 | K162: 0.1476506796 | M162: 0.06265625925 | N162: 0.046764081 | O162: 0 | P162: 0.02795699222 | Q162: 0.0001211298163 | R162: 0 | S162: 0.1374984623
A163: 2004 | B163: 1 | C163: 7 | D163: 17 | E163: 0.07908167584 | F163: 0.04674899245 | G163: 0.0001886396115 | H163: 0.02974791926 | I163: 0.0002434457661 | J163: 1.300873817e-05 | K163: 0.1560236817 | M163: 0.07201850438 | N163: 0.04491972941 | O163: 0.000170507248 | P163: 0.02777990836 | Q163: 0.0001211298163 | R163: 9.037089569e-06 | S163: 0.1450188163
A164: 2004 | B164: 1 | C164: 7 | D164: 18 | E164: 0.08469377543 | F164: 0.0494071407 | G164: 0.001886396115 | H164: 0.02729376694 | I164: 0.0002434457661 | J164: 0.0001300873817 | K164: 0.1636546123 | M164: 0.07712935989 | N164: 0.04747386574 | O164: 0.00170507248 | P164: 0.02548811356 | Q164: 0.0001211298163 | R164: 9.037089569e-05 | S164: 0.1520079124
A165: 2004 | B165: 1 | C165: 7 | D165: 19 | E165: 0.08253713331 | F165: 0.05560400311 | G165: 0.001886396115 | H165: 0.0252296047 | I165: 0.0002434457661 | J165: 0.0001300873817 | K165: 0.1656306704 | M165: 0.07516533803 | N165: 0.05342824825 | O165: 0.00170507248 | P165: 0.02356050856 | Q165: 0.0001211298163 | R165: 9.037089569e-05 | S165: 0.154070668
A166: 2004 | B166: 1 | C166: 7 | D166: 20 | E166: 0.08878636185 | F166: 0.05348502919 | G166: 0.001886396115 | H166: 0.017804683 | I166: 0.0002434457661 | J166: 0.0001300873817 | K166: 0.1623360033 | M166: 0.08085641739 | N166: 0.05139218864 | O166: 0.00170507248 | P166: 0.01662679187 | Q166: 0.0001211298163 | R166: 9.037089569e-05 | S166: 0.1507919711
A167: 2004 | B167: 1 | C167: 7 | D167: 21 | E167: 0.081588909 | F167: 0.05483168835 | G167: 0.001886396115 | H167: 0.02168705029 | I167: 0.0002434457661 | J167: 0.0001300873817 | K167: 0.1603675769 | M167: 0.07430180427 | N167: 0.05268615375 | O167: 0.00170507248 | P167: 0.02025231629 | Q167: 0.0001211298163 | R167: 9.037089569e-05 | S167: 0.1491568475
A168: 2004 | B168: 1 | C168: 7 | D168: 22 | E168: 0.08084456018 | F168: 0.05350851944 | G168: 0.001886396115 | H168: 0.01653351085 | I168: 0.0002434457661 | J168: 0.0001300873817 | K168: 0.1531465197 | M168: 0.07362393689 | N168: 0.05141475973 | O168: 0.00170507248 | P168: 0.01543971571 | Q168: 0.0001211298163 | R168: 9.037089569e-05 | S168: 0.1423949855
A169: 2004 | B169: 1 | C169: 7 | D169: 23 | E169: 0.07683515049 | F169: 0.04825267801 | G169: 0.001886396115 | H169: 0.01514524761 | I169: 0.0002434457661 | J169: 0.0001300873817 | K169: 0.1424930054 | M169: 0.0699726272 | N169: 0.04636457656 | O169: 0.00170507248 | P169: 0.01414329476 | Q169: 0.0001211298163 | R169: 9.037089569e-05 | S169: 0.1323970717
A170: 2004 | B170: 1 | C170: 7 | D170: 24 | E170: 0.0685518371 | F170: 0.04710263465 | G170: 0.001886396115 | H170: 0.01428795968 | I170: 0.0002434457661 | J170: 0.0001300873817 | K170: 0.1322023607 | M170: 0.06242913706 | N170: 0.04525953379 | O170: 0.00170507248 | P170: 0.01334272179 | Q170: 0.0001211298163 | R170: 9.037089569e-05 | S170: 0.1229479658
A171: 2004 | B171: 1 | C171: 8 | D171: 1 | E171: 0.0585935747 | F171: 0.04633335528 | G171: 0.001886396115 | H171: 0.01583942714 | I171: 0.0002434457661 | J171: 0.0001300873817 | K171: 0.1230262864 | M171: 0.05336029581 | N171: 0.04452035591 | O171: 0.00170507248 | P171: 0.01479154997 | Q171: 0.0001211298163 | R171: 9.037089569e-05 | S171: 0.1145887749
A172: 2004 | B172: 1 | C172: 8 | D172: 2 | E172: 0.05424360269 | F172: 0.04638915646 | G172: 0.001886396115 | H172: 0.01730118178 | I172: 0.0002434457661 | J172: 0.0001300873817 | K172: 0.1201938702 | M172: 0.04939884109 | N172: 0.04457397361 | O172: 0.00170507248 | P172: 0.01615660041 | Q172: 0.0001211298163 | R172: 9.037089569e-05 | S172: 0.1120459883
A173: 2004 | B173: 1 | C173: 8 | D173: 3 | E173: 0.05313493704 | F173: 0.04690128003 | G173: 0.001886396115 | H173: 0.01695784523 | I173: 0.0002434457661 | J173: 0.0001300873817 | K173: 0.1192539916 | M173: 0.04838919579 | N173: 0.04506605807 | O173: 0.00170507248 | P173: 0.01583597772 | Q173: 0.0001211298163 | R173: 9.037089569e-05 | S173: 0.1112078048
A174: 2004 | B174: 1 | C174: 8 | D174: 4 | E174: 0.05449144906 | F174: 0.04645388644 | G174: 0.001886396115 | H174: 0.01639887331 | I174: 0.0002434457661 | J174: 0.0001300873817 | K174: 0.1196041381 | M174: 0.04962455109 | N174: 0.04463617075 | O174: 0.00170507248 | P174: 0.01531398528 | Q174: 0.0001211298163 | R174: 9.037089569e-05 | S174: 0.1114912803
A175: 2004 | B175: 1 | C175: 8 | D175: 5 | E175: 0.05612483149 | F175: 0.04588719868 | G175: 0.001886396115 | H175: 0.01686665535 | I175: 0.0002434457661 | J175: 0.0001300873817 | K175: 0.1211386148 | M175: 0.05111204813 | N175: 0.04409165717 | O175: 0.00170507248 | P175: 0.01575082062 | Q175: 0.0001211298163 | R175: 9.037089569e-05 | S175: 0.1128710991
A176: 2004 | B176: 1 | C176: 8 | D176: 6 | E176: 0.05941112908 | F176: 0.04710770428 | G176: 0.001886396115 | H176: 0.01637791753 | I176: 0.0002434457661 | J176: 0.0001300873817 | K176: 0.1251566802 | M176: 0.05410483041 | N176: 0.04526440504 | O176: 0.00170507248 | P176: 0.01529441586 | Q176: 0.0001211298163 | R176: 9.037089569e-05 | S176: 0.1165802245
A177: 2004 | B177: 1 | C177: 8 | D177: 7 | E177: 0.06785214897 | F177: 0.04966344024 | G177: 0.001886396115 | H177: 0.01642821391 | I177: 0.0002434457661 | J177: 0.0001300873817 | K177: 0.1362037324 | M177: 0.06179194151 | N177: 0.04772013642 | O177: 0.00170507248 | P177: 0.01534138482 | Q177: 0.0001211298163 | R177: 9.037089569e-05 | S177: 0.1267700359
A178: 2004 | B178: 1 | C178: 8 | D178: 8 | E178: 0.07059602346 | F178: 0.05606090489 | G178: 0.001886396115 | H178: 0.022037318 | I178: 0.0002434457661 | J178: 0.0001300873817 | K178: 0.1509541756 | M178: 0.06429074713 | N178: 0.05386727171 | O178: 0.00170507248 | P178: 0.02057941159 | Q178: 0.0001211298163 | R178: 9.037089569e-05 | S178: 0.1406540036
A179: 2004 | B179: 1 | C179: 8 | D179: 9 | E179: 0.07536920721 | F179: 0.05452522741 | G179: 0.0002207083455 | H179: 0.02444040773 | I179: 0.0002434457661 | J179: 1.522022366e-05 | K179: 0.1548142167 | M179: 0.06863761449 | N179: 0.05239168446 | O179: 0.0001994934802 | P179: 0.02282352191 | Q179: 0.0001211298163 | R179: 1.05733948e-05 | S179: 0.1441840175
A180: 2004 | B180: 1 | C180: 8 | D180: 10 | E180: 0.07645033801 | F180: 0.05030592346 | G180: 0 | H180: 0.02736909464 | I180: 0.0002434457661 | J180: 0 | K180: 0.1543688019 | M180: 0.06962218421 | N180: 0.04833747962 | O180: 0 | P180: 0.02555845786 | Q180: 0.0001211298163 | R180: 0 | S180: 0.1436392515
A181: 2004 | B181: 1 | C181: 8 | D181: 11 | E181: 0.07252321076 | F181: 0.05089449467 | G181: 0 | H181: 0.02839132353 | I181: 0.0002434457661 | J181: 0 | K181: 0.1520524747 | M181: 0.06604580791 | N181: 0.04890302035 | O181: 0 | P181: 0.02651305992 | Q181: 0.0001211298163 | R181: 0 | S181: 0.141583018
A182: 2004 | B182: 1 | C182: 8 | D182: 12 | E182: 0.0698973168 | F182: 0.05131144439 | G182: 0 | H182: 0.0299707409 | I182: 0.0002434457661 | J182: 0 | K182: 0.1514229479 | M182: 0.06365444539 | N182: 0.04930365506 | O182: 0 | P182: 0.02798798896 | Q182: 0.0001211298163 | R182: 0 | S182: 0.1410672192
A183: 2004 | B183: 1 | C183: 8 | D183: 13 | E183: 0.0681837159 | F183: 0.05049130427 | G183: 0 | H183: 0.02973496259 | I183: 0.0002434457661 | J183: 0 | K183: 0.1486534285 | M183: 0.06209389457 | N183: 0.04851560657 | O183: 0 | P183: 0.02776780885 | Q183: 0.0001211298163 | R183: 0 | S183: 0.1384984398
A184: 2004 | B184: 1 | C184: 8 | D184: 14 | E184: 0.06663914242 | F184: 0.05044463651 | G184: 0 | H184: 0.02854994149 | I184: 0.0002434457661 | J184: 0 | K184: 0.1458771662 | M184: 0.06068727451 | N184: 0.0484707649 | O184: 0 | P184: 0.02666118431 | Q184: 0.0001211298163 | R184: 0 | S184: 0.1359403535
A185: 2004 | B185: 1 | C185: 8 | D185: 15 | E185: 0.06467531439 | F185: 0.04962642726 | G185: 0 | H185: 0.02984741593 | I185: 0.0002434457661 | J185: 0 | K185: 0.1443926034 | M185: 0.05889884557 | N185: 0.04768457174 | O185: 0 | P185: 0.02787282271 | Q185: 0.0001211298163 | R185: 0 | S185: 0.1345773698
A186: 2004 | B186: 1 | C186: 8 | D186: 16 | E186: 0.06858650628 | F186: 0.04841583255 | G186: 0 | H186: 0.02989448845 | I186: 0.0002434457661 | J186: 0 | K186: 0.1471402731 | M186: 0.06246070977 | N186: 0.04652134696 | O186: 0 | P186: 0.02791678108 | Q186: 0.0001211298163 | R186: 0 | S186: 0.1370199676
A187: 2004 | B187: 1 | C187: 8 | D187: 17 | E187: 0.07882616774 | F187: 0.04653776892 | G187: 0.0001565708776 | H187: 0.02969547746 | I187: 0.0002434457661 | J187: 1.079725268e-05 | K187: 0.155470228 | M187: 0.07178581695 | N187: 0.04471677095 | O187: 0.0001415210159 | P187: 0.02773093591 | Q187: 0.0001211298163 | R187: 7.500784342e-06 | S187: 0.1445036754
A188: 2004 | B188: 1 | C188: 8 | D188: 18 | E188: 0.08435494753 | F188: 0.04934706035 | G188: 0.001886396115 | H188: 0.02715280132 | I188: 0.0002434457661 | J188: 0.0001300873817 | K188: 0.1631147385 | M188: 0.07682079437 | N188: 0.04741613631 | O188: 0.00170507248 | P188: 0.0253564737 | Q188: 0.0001211298163 | R188: 9.037089569e-05 | S188: 0.1515099776
A189: 2004 | B189: 1 | C189: 8 | D189: 19 | E189: 0.08220717023 | F189: 0.05551250474 | G189: 0.001886396115 | H189: 0.02511079536 | I189: 0.0002434457661 | J189: 0.0001300873817 | K189: 0.1650903996 | M189: 0.07486484557 | N189: 0.05334033016 | O189: 0.00170507248 | P189: 0.02344955921 | Q189: 0.0001211298163 | R189: 9.037089569e-05 | S189: 0.1535713081
A190: 2004 | B190: 1 | C190: 8 | D190: 20 | E190: 0.08842848005 | F190: 0.05341404951 | G190: 0.001886396115 | H190: 0.01770401489 | I190: 0.0002434457661 | J190: 0.0001300873817 | K190: 0.1618064737 | M190: 0.08053049976 | N190: 0.05132398636 | O190: 0.00170507248 | P190: 0.01653278359 | Q190: 0.0001211298163 | R190: 9.037089569e-05 | S190: 0.1503038429
A191: 2004 | B191: 1 | C191: 8 | D191: 21 | E191: 0.08124965314 | F191: 0.05476101794 | G191: 0.001886396115 | H191: 0.02157387035 | I191: 0.0002434457661 | J191: 0.0001300873817 | K191: 0.1598444707 | M191: 0.07399284902 | N191: 0.05261824864 | O191: 0.00170507248 | P191: 0.02014662391 | Q191: 0.0001211298163 | R191: 9.037089569e-05 | S191: 0.1486742948
A192: 2004 | B192: 1 | C192: 8 | D192: 22 | E192: 0.08054095607 | F192: 0.05337956359 | G192: 0.001886396115 | H192: 0.01646651121 | I192: 0.0002434457661 | J192: 0.0001300873817 | K192: 0.1526469601 | M192: 0.07334744915 | N192: 0.05129084986 | O192: 0.00170507248 | P192: 0.01537714852 | Q192: 0.0001211298163 | R192: 9.037089569e-05 | S192: 0.1419320207
A193: 2004 | B193: 1 | C193: 8 | D193: 23 | E193: 0.07652528812 | F193: 0.04813865697 | G193: 0.001886396115 | H193: 0.01506115712 | I193: 0.0002434457661 | J193: 0.0001300873817 | K193: 0.1419850315 | M193: 0.06969044015 | N193: 0.0462550171 | O193: 0.00170507248 | P193: 0.01406476739 | Q193: 0.0001211298163 | R193: 9.037089569e-05 | S193: 0.1319267978
A194: 2004 | B194: 1 | C194: 8 | D194: 24 | E194: 0.06828706602 | F194: 0.04693844348 | G194: 0.001886396115 | H194: 0.014237529 | I194: 0.0002434457661 | J194: 0.0001300873817 | K194: 0.1317229678 | M194: 0.06218801399 | N194: 0.04510176732 | O194: 0.00170507248 | P194: 0.01329562741 | Q194: 0.0001211298163 | R194: 9.037089569e-05 | S194: 0.1225019819
A195: 2004 | B195: 1 | C195: 9 | D195: 1 | E195: 0.05252905475 | F195: 0.04495601221 | G195: 0.001886396115 | H195: 0.01328109097 | I195: 0.0002434457661 | J195: 0.0001300873817 | K195: 0.1130260872 | M195: 0.04783742781 | N195: 0.04319690753 | O195: 0.00170507248 | P195: 0.01240246375 | Q195: 0.0001211298163 | R195: 9.037089569e-05 | S195: 0.1053533723
A196: 2004 | B196: 1 | C196: 9 | D196: 2 | E196: 0.04766303669 | F196: 0.0447917855 | G196: 0.001886396115 | H196: 0.01388310574 | I196: 0.0002434457661 | J196: 0.0001300873817 | K196: =SUM(E196:J196) -> 0.1085978572 | M196: =E196*V$5 -> 0.04340601764 | N196: =F196*W$5 -> 0.04303910692 | O196: =G196*X$5 -> 0.00170507248 | P196: =H196*AB$5 -> 0.01296465147 | Q196: =I196*Z$5 -> 0.0001211298163 | R196: =J196*AA$5 -> 9.037089569e-05 | S196: =SUM(M196:R196) -> 0.1013263492
A197: 2004 | B197: 1 | C197: 9 | D197: 3 | E197: 0.04676478575 | F197: 0.04379376382 | G197: 0.001886396115 | H197: 0.01373573749 | I197: 0.0002434457661 | J197: 0.0001300873817 | K197: 0.1065542163 | M197: 0.04258799389 | N197: 0.0420801373 | O197: 0.00170507248 | P197: 0.01282703256 | Q197: 0.0001211298163 | R197: 9.037089569e-05 | S197: 0.09941173694
A198: 2004 | B198: 1 | C198: 9 | D198: 4 | E198: 0.04608670585 | F198: 0.04432822089 | G198: 0.001886396115 | H198: 0.01339008956 | I198: 0.0002434457661 | J198: 0.0001300873817 | K198: 0.1060649456 | M198: 0.04197047662 | N198: 0.04259368135 | O198: 0.00170507248 | P198: 0.0125042514 | Q198: 0.0001211298163 | R198: 9.037089569e-05 | S198: 0.09898498256
A199: 2004 | B199: 1 | C199: 9 | D199: 5 | E199: 0.04845486377 | F199: 0.04367383312 | G199: 0.001886396115 | H199: 0.0127272326 | I199: 0.0002434457661 | J199: 0.0001300873817 | K199: 0.1071158588 | M199: 0.04412712277 | N199: 0.04196489942 | O199: 0.00170507248 | P199: 0.01188524657 | Q199: 0.0001211298163 | R199: 9.037089569e-05 | S199: 0.09989384196
A200: 2004 | B200: 1 | C200: 9 | D200: 6 | E200: 0.05250728612 | F200: 0.04451161177 | G200: 0.001886396115 | H200: 0.01118497565 | I200: 0.0002434457661 | J200: 0.0001300873817 | K200: 0.1104638028 | M200: 0.04781760345 | N200: 0.04276989625 | O200: 0.00170507248 | P200: 0.01044501956 | Q200: 0.0001211298163 | R200: 9.037089569e-05 | S200: 0.1029490924
... 4296 more rows

Sheet 2006 Input to CA model (hidden)
A2: Feed into OEB Cost Allocation Model (version 50) sheet "I6 Customer Data", row 27
D3: 1 | E3: 2 | F3: 3 | G3: 4 | H3: 5 | I3: 6 | J3: 7 | K3: 8 | L3: 9 | M3: 10 | N3: 11 | O3: 12 | P3: 13 | Q3: 14 | R3: 15 | S3: 16 | T3: 17 | U3: 18 | V3: 19 | W3: 20
B4: ID | C4: Total | D4: Residential | E4: GS>50kW | F4: Street Lighting | G4: Sentinel Lighting | H4: USL | I4: GS<50kW
A6: kWh - 30 year weather normalized amount | C6: =SUM(D6:I6) -> 468300043.1 | D6: 239658158.5 | E6: 146047497.3 | F6: 5353155.35 | G6: 7299.44 | H6: 534100.97 | I6: 76699831.46 | J6: 0 | K6: 0 | L6: 0 | M6: 0 | N6: 0
A9: Feed into OEB Cost Allocation Model sheet (version 50) "I8 Demand Data", row 40, 45, 50, 55, 61 and 67
D10: 1 | E10: 2 | F10: 3 | G10: 4 | H10: 5 | I10: 6 | J10: 7 | K10: 8 | L10: 9 | M10: 10 | N10: 11 | O10: 12 | P10: 13 | Q10: 14 | R10: 15 | S10: 16 | T10: 17 | U10: 18 | V10: 19 | W10: 20
A11: Customer Classes | C11: Total | D11: Residential | E11: GS>50kW | F11: Street Lighting | G11: Sentinel Lighting | H11: USL | I11: GS<50kW
A13: CO-INCIDENT PEAK (kW)
A15: 1 CP
A16: Total Sytem CP | B16: DCP1 | C16: =SUM(D16:I16) -> 0
A18: 4 CP
A19: Total Sytem CP | B19: DCP4 | C19: =SUM(D19:I19) -> 0
A21: 12 CP
A22: Total Sytem CP | B22: DCP12 | C22: =SUM(D22:I22) -> 0
A24: NON CO_INCIDENT PEAK (kW)
A26: 1 NCP
A27: Classification NCP from Load Data Provider | B27: DNCP1 | C27: =SUM(D27:I27) -> 0
A29: 4 NCP
A30: Classification NCP from Load Data Provider | B30: DNCP4 | C30: =SUM(D30:I30) -> 0
A32: 12 NCP
A33: Classification NCP from Load Data Provider | B33: DNCP12 | C33: =SUM(D33:I33) -> 0

Sheet Revised Inputs to CA model
A2: Feed into OEB Cost Allocation Model (version 50) sheet "I6 Customer Data", row 27
B4: ID | C4: Total | D4: ='Hourly load shapes by class'!E2 -> Residential | E4: ='Hourly load shapes by class'!F2 -> GS 50 to 5000kW | F4: ='Hourly load shapes by class'!G2 -> Street Lighting | G4: ='Hourly load shapes by class'!H2 -> GS<50kW | H4: ='Hourly load shapes by class'!I2 -> USL | I4: ='Hourly load shapes by class'!J2 -> Sentinel Lighting | J4: Standby Power
A6: kWh - 30 year weather normalized amount | C6: =SUM(D6:H6) -> 906942284.5 | D6: 396501910.5 | E6: 357210192.7 | F6: 8123421.663 | G6: 142933275.9 | H6: 2173483.8 | I6: 560197.6413 | J6: 16859174.02
A9: Feed into OEB Cost Allocation Model sheet (version 50) "I8 Demand Data", row 40, 45, 50, 55, 61 and 67 | L9: 2015 Demand Data
A11: Customer Classes | C11: Total | D11: ='Hourly load shapes by class'!E2 -> Residential | E11: ='Hourly load shapes by class'!F2 -> GS 50 to 5000kW | F11: ='Hourly load shapes by class'!G2 -> Street Lighting | G11: ='Hourly load shapes by class'!H2 -> GS<50kW | H11: ='Hourly load shapes by class'!I2 -> USL | I11: ='Hourly load shapes by class'!J2 -> Sentinel Lighting | L11: =D11 -> Residential | M11: =E11 -> GS 50 to 5000kW | N11: Street Lighting | O11: GS<50kW | P11: USL | Q11: Sentinel Lighting
A13: CO-INCIDENT PEAK (kW)
A15: 1 CP
A16: Total Sytem CP | B16: DCP1 | C16: =SUM(D16:H16) -> 176228.8692 | D16: ='Hourly load shapes by class'!E8802*1000000 -> 95034.14261 | E16: ='Hourly load shapes by class'!F8802*1000000 -> 53699.67163 | F16: ='Hourly load shapes by class'!G8802*1000000 -> 1886.396115 | G16: ='Hourly load shapes by class'!H8802*1000000 -> 25365.21311 | H16: ='Hourly load shapes by class'!I8802*1000000 -> 243.4457661 | I16: ='Hourly load shapes by class'!J8802*1000000 -> 130.0873817 | J16: 0 | L16: ='Hourly load shapes by class'!M8815*1000000 -> 86546.17828 | M16: ='Hourly load shapes by class'!N8815*1000000 -> 51598.43224 | N16: ='Hourly load shapes by class'!O8815*1000000 -> 1705.07248 | O16: ='Hourly load shapes by class'!P8815*1000000 -> 23687.14563 | P16: ='Hourly load shapes by class'!Q8815*1000000 -> 121.1298163 | Q16: ='Hourly load shapes by class'!R8815*1000000 -> 90.37089569
A18: 4 CP
A19: Total Sytem CP | B19: DCP4 | C19: =SUM(D19:H19) -> 670847.2077 | D19: =SUM('Hourly load shapes by class'!E8815:E8818)*1000000 -> 356002.5892 | E19: =SUM('Hourly load shapes by class'!F8815:F8818)*1000000 -> 206214.3945 | F19: =SUM('Hourly load shapes by class'!G8815:G8818)*1000000 -> 7520.767464 | G19: =SUM('Hourly load shapes by class'!H8815:H8818)*1000000 -> 100110.7692 | H19: =SUM('Hourly load shapes by class'!I8815:I8818)*1000000 -> 998.6872866 | I19: =SUM('Hourly load shapes by class'!J8815:J8818)*1000000 -> 518.6381268 | J19: 6054.713221 | L19: =SUM('Hourly load shapes by class'!M8815:M8818)*1000000 -> 324206.2558 | M19: =SUM('Hourly load shapes by class'!N8815:N8818)*1000000 -> 198145.3357 | N19: =SUM('Hourly load shapes by class'!O8815:O8818)*1000000 -> 6797.858377 | O19: =SUM('Hourly load shapes by class'!P8815:P8818)*1000000 -> 93487.81577 | P19: =SUM('Hourly load shapes by class'!Q8815:Q8818)*1000000 -> 496.9107062 | Q19: =SUM('Hourly load shapes by class'!R8815:R8818)*1000000 -> 360.2946839
A21: 12 CP
A22: Total Sytem CP | B22: DCP12 | C22: =SUM(D22:H22) -> 1689364.524 | D22: =SUM('Hourly load shapes by class'!E8802:E8813)*1000000 -> 801723.465 | E22: =SUM('Hourly load shapes by class'!F8802:F8813)*1000000 -> 578415.941 | F22: =SUM('Hourly load shapes by class'!G8802:G8813)*1000000 -> 8496.549696 | G22: =SUM('Hourly load shapes by class'!H8802:H8813)*1000000 -> 297757.9699 | H22: =SUM('Hourly load shapes by class'!I8802:I8813)*1000000 -> 2970.597992 | I22: =SUM('Hourly load shapes by class'!J8802:J8813)*1000000 -> 585.9288483 | J22: 24213.67204 | L22: =SUM('Hourly load shapes by class'!M8802:M8813)*1000000 -> 726468.799 | M22: =SUM('Hourly load shapes by class'!N8802:N8813)*1000000 -> 562715.1051 | N22: =SUM('Hourly load shapes by class'!O8802:O8813)*1000000 -> 9384.919224 | O22: =SUM('Hourly load shapes by class'!P8802:P8813)*1000000 -> 273087.3001 | P22: =SUM('Hourly load shapes by class'!Q8802:Q8813)*1000000 -> 1478.062218 | Q22: =SUM('Hourly load shapes by class'!R8802:R8813)*1000000 -> 497.4120256
A24: NON CO_INCIDENT PEAK (kW)
A26: 1 NCP
A27: Classification NCP from Load Data Provider | B27: DNCP1 | C27: =SUM(D27:H27) -> 191999.4486 | D27: ='Hourly load shapes by class'!E8788*1000000 -> 99430.11402 | E27: ='Hourly load shapes by class'!F8788*1000000 -> 57491.58344 | F27: ='Hourly load shapes by class'!G8788*1000000 -> 1886.396115 | G27: ='Hourly load shapes by class'!H8788*1000000 -> 32947.90929 | H27: ='Hourly load shapes by class'!I8788*1000000 -> 243.4457661 | I27: ='Hourly load shapes by class'!J8788*1000000 -> 130.0873817 | J27: 3229.982063 | L27: =MAX('Hourly load shapes by class'!M8788:M8799)*1000000 -> 90549.52397 | M27: =MAX('Hourly load shapes by class'!N8788:N8799)*1000000 -> 59635.81947 | N27: =MAX('Hourly load shapes by class'!O8788:O8799)*1000000 -> 1711.162364 | O27: =MAX('Hourly load shapes by class'!P8788:P8799)*1000000 -> 30768.19904 | P27: =MAX('Hourly load shapes by class'!Q8788:Q8799)*1000000 -> 129.4835967 | Q27: =MAX('Hourly load shapes by class'!R8788:R8799)*1000000 -> 90.69366684
A29: 4 NCP
A30: Classification NCP from Load Data Provider | B30: DNCP4 | C30: =SUM(D30:H30) -> 731417.1358 | D30: =(LARGE('Hourly load shapes by class'!E8788:E8799,1)+LARGE('Hourly load shapes by class'!E8788:E8799,2)+LARGE('Hourly load shapes by class'!E8788:E8799,3)+LARGE('Hourly load shapes by class'!E8788:E8799,4))*1000000 -> 364951.0518 | E30: =(LARGE('Hourly load shapes by class'!F8788:F8799,1)+LARGE('Hourly load shapes by class'!F8788:F8799,2)+LARGE('Hourly load shapes by class'!F8788:F8799,3)+LARGE('Hourly load shapes by class'!F8788:F8799,4))*1000000 -> 233812.9843 | F30: =(LARGE('Hourly load shapes by class'!G8788:G8799,1)+LARGE('Hourly load shapes by class'!G8788:G8799,2)+LARGE('Hourly load shapes by class'!G8788:G8799,3)+LARGE('Hourly load shapes by class'!G8788:G8799,4))*1000000 -> 7553.833181 | G30: =(LARGE('Hourly load shapes by class'!H8788:H8799,1)+LARGE('Hourly load shapes by class'!H8788:H8799,2)+LARGE('Hourly load shapes by class'!H8788:H8799,3)+LARGE('Hourly load shapes by class'!H8788:H8799,4))*1000000 -> 124084.3495 | H30: =(LARGE('Hourly load shapes by class'!I8788:I8799,1)+LARGE('Hourly load shapes by class'!I8788:I8799,2)+LARGE('Hourly load shapes by class'!I8788:I8799,3)+LARGE('Hourly load shapes by class'!I8788:I8799,4))*1000000 -> 1014.917004 | I30: =(LARGE('Hourly load shapes by class'!J8788:J8799,1)+LARGE('Hourly load shapes by class'!J8788:J8799,2)+LARGE('Hourly load shapes by class'!J8788:J8799,3)+LARGE('Hourly load shapes by class'!J8788:J8799,4))*1000000 -> 520.918365 | J30: 12166.87847 | L30: =(LARGE('Hourly load shapes by class'!M8788:M8799,1)+LARGE('Hourly load shapes by class'!M8788:M8799,2)+LARGE('Hourly load shapes by class'!M8788:M8799,3)+LARGE('Hourly load shapes by class'!M8788:M8799,4))*1000000 -> 332355.4874 | M30: =(LARGE('Hourly load shapes by class'!N8788:N8799,1)+LARGE('Hourly load shapes by class'!N8788:N8799,2)+LARGE('Hourly load shapes by class'!N8788:N8799,3)+LARGE('Hourly load shapes by class'!N8788:N8799,4))*1000000 -> 224664.0075 | N30: =(LARGE('Hourly load shapes by class'!O8788:O8799,1)+LARGE('Hourly load shapes by class'!O8788:O8799,2)+LARGE('Hourly load shapes by class'!O8788:O8799,3)+LARGE('Hourly load shapes by class'!O8788:O8799,4))*1000000 -> 6827.74576 | O30: =(LARGE('Hourly load shapes by class'!P8788:P8799,1)+LARGE('Hourly load shapes by class'!P8788:P8799,2)+LARGE('Hourly load shapes by class'!P8788:P8799,3)+LARGE('Hourly load shapes by class'!P8788:P8799,4))*1000000 -> 115875.3937 | P30: =(LARGE('Hourly load shapes by class'!Q8788:Q8799,1)+LARGE('Hourly load shapes by class'!Q8788:Q8799,2)+LARGE('Hourly load shapes by class'!Q8788:Q8799,3)+LARGE('Hourly load shapes by class'!Q8788:Q8799,4))*1000000 -> 504.9860273 | Q30: =(LARGE('Hourly load shapes by class'!R8788:R8799,1)+LARGE('Hourly load shapes by class'!R8788:R8799,2)+LARGE('Hourly load shapes by class'!R8788:R8799,3)+LARGE('Hourly load shapes by class'!R8788:R8799,4))*1000000 -> 361.8787512
A32: 12 NCP
A33: Classification NCP from Load Data Provider | B33: DNCP12 | C33: =SUM(D33:H33) -> 1853566.468 | D33: =SUM('Hourly load shapes by class'!E8788:E8799)*1000000 -> 843680.951 | E33: =SUM('Hourly load shapes by class'!F8788:F8799)*1000000 -> 651189.3226 | F33: =SUM('Hourly load shapes by class'!G8788:G8799)*1000000 -> 22636.3336 | G33: =SUM('Hourly load shapes by class'!H8788:H8799)*1000000 -> 333089.2624 | H33: =SUM('Hourly load shapes by class'!I8788:I8799)*1000000 -> 2970.597992 | I33: =SUM('Hourly load shapes by class'!J8788:J8799)*1000000 -> 1561.019632 | J33: 30961.22262 | L33: =SUM('Hourly load shapes by class'!M8788:M8799)*1000000 -> 768327.6766 | M33: =SUM('Hourly load shapes by class'!N8788:N8799)*1000000 -> 625708.6332 | N33: =SUM('Hourly load shapes by class'!O8788:O8799)*1000000 -> 20460.49033 | O33: =SUM('Hourly load shapes by class'!P8788:P8799)*1000000 -> 311053.3246 | P33: =SUM('Hourly load shapes by class'!Q8788:Q8799)*1000000 -> 1478.062218 | Q33: =SUM('Hourly load shapes by class'!R8788:R8799)*1000000 -> 1084.430638
